Workbook

Sheet DaoyouModelConfig
A1: ID | B1: name | D1: quality | E1: bodyIcon | F1: bodyPos | G1: headIcon | H1: growupRate | I1: des | J1: desUnlockLv | O1: PreferGiftID | P1: shownPreferGiftID | U1: guajiBuffID | AA1: daolvSkillID | AC1: EmotionLvforQuest | AD1: EventCompleteforQuest | AE1: QuestID | AG1: EmotionLvforspecialGift | AH1: specialGiftID | AI1: specialGiftNum
A2: int | B2: int | D2: int | E2: string | F2: int[] | G2: string | H2: int | I2: int[] | J2: int[] | O2: int[] | P2: int[] | U2: int[] | AA2: int[] | AC2: int | AD2: int | AE2: int | AG2: int[] | AH2: int[] | AI2: int[]
A4: ID | B4: 名称 | C4: 名称 | D4: 道友品质 | E4: 半身像 | F4: 半身像位置 | G4: 头像 | H4: 潜力 80=80% 等级差 | I4: 介绍 | J4: 介绍解锁相熟等级 | O4: 喜好的礼物ID | P4: 默认显示的礼物ID | Q4: 喜好礼物1 | R4: 喜好礼物2 | S4: 喜好礼物3 | U4: 挂机增益类型 | V4: 产出概率 | W4: 产出类型1 | X4: 产出类型2 | Y4: 产出1 | Z4: 产出2 | AA4: 成为道侣后提供的技能ID | AB4: 技能1 | AC4: 触发道侣任务的好感度等级 | AD4: 触发道侣任务必须完成的事件id | AE4: 道侣任务ID | AG4: 特殊奖励好感度等级 | AH4: 特殊奖励ID | AI4: 特殊奖励数量
A5: 1 | B5: 1953 | C5: =VLOOKUP(B5,[1]语言配置表!$A:$B,2,FALSE) -> 雀灵儿 | D5: 2 | E5: bg_lh_quelinger | F5: 0;207 | G5: dec_lh_quelinger | H5: 90 | I5: =_xlfn.TEXTJOIN(";",1,K5:M5) -> 1963 | J5: 1 | K5: 1963 | O5: =_xlfn.TEXTJOIN(";",1,Q5:S5) -> 13005;11001;11002 | P5: =Q5 -> 13005 | Q5: 13005 | R5: 11001 | S5: 11002 | U5: =_xlfn.TEXTJOIN(";",1,V5:X5) -> 2;11;23 | V5: 2 | W5: 11 | X5: 23 | Y5: =VLOOKUP(W5,guajibuff!$A:$C,3,FALSE) -> 双修之旅·小 | Z5: =VLOOKUP(X5,guajibuff!$A:$C,3,FALSE) -> 商贾之道·大 | AA5: 17 | AB5: =VLOOKUP(AA5,daolvSkill!A:E,5,FALSE) -> 金之灵根 | AC5: 4 | AD5: 1 | AE5: 6006 | AG5: 3 | AH5: 1703 | AI5: 1 | AJ5: 小时候父母被大风卷走，她与姐姐云枝相依为命，躲在树林玩耍以避险。
A6: 2 | B6: 1954 | C6: =VLOOKUP(B6,[1]语言配置表!$A:$B,2,FALSE) -> 云枝 | D6: 2 | E6: bg_lh_yunzhi | F6: 0;85 | G6: dec_lh_yunzhi | H6: 90 | I6: =_xlfn.TEXTJOIN(";",1,K6:M6) -> 1964 | J6: 1 | K6: 1964 | O6: =_xlfn.TEXTJOIN(";",1,Q6:S6) -> 13010;11003;11004 | P6: =Q6 -> 13010 | Q6: 13010 | R6: 11003 | S6: 11004 | U6: =_xlfn.TEXTJOIN(";",1,V6:X6) -> 2;11;33 | V6: 2 | W6: 11 | X6: 33 | Y6: =VLOOKUP(W6,guajibuff!$A:$C,3,FALSE) -> 双修之旅·小 | Z6: =VLOOKUP(X6,guajibuff!$A:$C,3,FALSE) -> 席地论法·大 | AA6: 22 | AB6: =VLOOKUP(AA6,daolvSkill!A:E,5,FALSE) -> 水之灵根 | AC6: 5 | AD6: 1 | AE6: 6016 | AG6: 4 | AH6: 1703 | AI6: 1 | AJ6: 雀灵儿的姐姐，北海密径的守护者，化形为优雅女子，守护妹妹免受危害。
A7: 3 | B7: 1955 | C7: =VLOOKUP(B7,[1]语言配置表!$A:$B,2,FALSE) -> 风瑶 | D7: 3 | E7: bg_lh_fengyao | F7: 0;106 | G7: dec_lh_fengyao | H7: 100 | I7: 1965 | J7: 1 | K7: 1965 | O7: 13015;11006;11005 | P7: 13015 | Q7: 13015 | R7: 11006 | S7: 11005 | U7: 2;11;43 | V7: 2 | W7: 11 | X7: 43 | Y7: =VLOOKUP(W7,guajibuff!$A:$C,3,FALSE) -> 双修之旅·小 | Z7: =VLOOKUP(X7,guajibuff!$A:$C,3,FALSE) -> 坎山寻宝·大 | AA7: 27 | AB7: =VLOOKUP(AA7,daolvSkill!A:E,5,FALSE) -> 木之灵根 | AC7: 6 | AD7: 1 | AE7: 6026 | AG7: 5 | AH7: 1703 | AI7: 1 | AJ7: 疯道人的妹妹，出身云隐宗，有勇有谋，偶然发现宗门异常，开始暗中调查真相。
A8: 4 | B8: 1956 | C8: =VLOOKUP(B8,[1]语言配置表!$A:$B,2,FALSE) -> 婉溪 | D8: 3 | E8: bg_lh_wanxi | F8: 0;190 | G8: dec_lh_wanxi | H8: 100 | I8: 1966 | J8: 1 | K8: 1966 | O8: 13020;11008;11007 | P8: 13020 | Q8: 13020 | R8: 11008 | S8: 11007 | U8: 2;12;22 | V8: 2 | W8: 12 | X8: 22 | Y8: =VLOOKUP(W8,guajibuff!$A:$C,3,FALSE) -> 双修之旅·中 | Z8: =VLOOKUP(X8,guajibuff!$A:$C,3,FALSE) -> 商贾之道·中 | AA8: 32 | AB8: =VLOOKUP(AA8,daolvSkill!A:E,5,FALSE) -> 火之灵根 | AC8: 7 | AD8: 1 | AE8: 6036 | AG8: 4 | AH8: 1703 | AI8: 1 | AJ8: 许由的妹妹，出身幽山秘境家族，性格恬淡，擅长种植和煮茶。
A9: 7 | B9: 1959 | C9: =VLOOKUP(B9,[1]语言配置表!$A:$B,2,FALSE) -> 馨儿 | D9: 4 | E9: bg_lh_xiner | F9: 0;210 | G9: dec_lh_xiner | H9: 110 | I9: 1967 | J9: 1 | K9: 1967 | O9: 13025;11010;13511 | P9: 13025 | Q9: 13025 | R9: 11010 | S9: 13511 | U9: 2;12;32 | V9: 2 | W9: 12 | X9: 32 | Y9: =VLOOKUP(W9,guajibuff!$A:$C,3,FALSE) -> 双修之旅·中 | Z9: =VLOOKUP(X9,guajibuff!$A:$C,3,FALSE) -> 席地论法·中 | AA9: 37 | AB9: =VLOOKUP(AA9,daolvSkill!A:E,5,FALSE) -> 土之灵根 | AC9: 8 | AD9: 1 | AE9: 9146 | AG9: 5 | AH9: 1703 | AI9: 1 | AJ9: 云隐宗内门弟子，性格活波可爱，对阵法研究比较感兴趣。
A10: 8 | B10: 1960 | C10: =VLOOKUP(B10,[1]语言配置表!$A:$B,2,FALSE) -> 柳轻烟 | D10: 4 | E10: bg_lh_liuqingyan2 | F10: 0;136 | G10: dec_lh_liuqingyan2 | H10: 110 | I10: 1968 | J10: 1 | K10: 1968 | O10: 13501;13506;13512 | P10: 13501 | Q10: 13501 | R10: 13506 | S10: 13512 | U10: 2;13;41 | V10: 2 | W10: 13 | X10: 41 | Y10: =VLOOKUP(W10,guajibuff!$A:$C,3,FALSE) -> 双修之旅·大 | Z10: =VLOOKUP(X10,guajibuff!$A:$C,3,FALSE) -> 坎山寻宝·小 | AA10: 18 | AB10: =VLOOKUP(AA10,daolvSkill!A:E,5,FALSE) -> 金之灵根 | AC10: 9 | AD10: 1 | AE10: 9146 | AG10: 6 | AH10: 1703 | AI10: 1 | AJ10: 云隐宗内门弟子，心思缜密，为云隐宗执行各种秘密任务。
A11: 5 | B11: 1957 | C11: =VLOOKUP(B11,[1]语言配置表!$A:$B,2,FALSE) -> 许由 | D11: 4 | E11: bg_lh_xuyou | F11: 0;265 | G11: dec_lh_xuyou | H11: 100 | I11: 1969 | J11: 1 | K11: 1969 | O11: 13502;13507;13513 | P11: 13502 | Q11: 13502 | R11: 13507 | S11: 13513 | U11: 2;22;33 | V11: 2 | W11: 22 | X11: 33 | Y11: =VLOOKUP(W11,guajibuff!$A:$C,3,FALSE) -> 商贾之道·中 | Z11: =VLOOKUP(X11,guajibuff!$A:$C,3,FALSE) -> 席地论法·大 | AA11: 23 | AB11: =VLOOKUP(AA11,daolvSkill!A:E,5,FALSE) -> 水之灵根 | AC11: -1 | AD11: 1 | AE11: -1 | AG11: 5 | AH11: 1703 | AI11: 3 | AJ11: 山林隐士，拒绝尧让天下，出身幽山秘境，隐居修道，喜爱炼丹与品茶。
A12: 6 | B12: 1958 | C12: =VLOOKUP(B12,[1]语言配置表!$A:$B,2,FALSE) -> 疯道人 | D12: 5 | E12: bg_lh_fengdaoren | F12: 0;146 | G12: dec_lh_fengdaoren | H12: 100 | I12: 1970 | J12: 1 | K12: 1970 | O12: 13503;13508;13514 | P12: 13503 | Q12: 13503 | R12: 13508 | S12: 13514 | U12: 2;32;43 | V12: 2 | W12: 32 | X12: 43 | Y12: =VLOOKUP(W12,guajibuff!$A:$C,3,FALSE) -> 席地论法·中 | Z12: =VLOOKUP(X12,guajibuff!$A:$C,3,FALSE) -> 坎山寻宝·大 | AA12: 28 | AB12: =VLOOKUP(AA12,daolvSkill!A:E,5,FALSE) -> 木之灵根 | AC12: -1 | AD12: 1 | AE12: -1 | AG12: 6 | AH12: 1703 | AI12: 3 | AJ12: 看似疯疯癫癫，浑身散发着经年未洗的酸腐气，却又总能诡异地维持着平衡。
A13: 9 | B13: 1961 | C13: =VLOOKUP(B13,[1]语言配置表!$A:$B,2,FALSE) -> 楚云缪 | D13: 5 | E13: bg_lh_chuyunmiao | F13: 0;108 | G13: dec_lh_chuyunmiao | H13: 100 | I13: 1971 | J13: 1 | K13: 1971 | O13: 13504;13509;13515 | P13: 13504 | Q13: 13504 | R13: 13509 | S13: 13515 | U13: 2;42;23 | V13: 2 | W13: 42 | X13: 23 | Y13: =VLOOKUP(W13,guajibuff!$A:$C,3,FALSE) -> 坎山寻宝·中 | Z13: =VLOOKUP(X13,guajibuff!$A:$C,3,FALSE) -> 商贾之道·大 | AA13: 33 | AB13: =VLOOKUP(AA13,daolvSkill!A:E,5,FALSE) -> 火之灵根 | AC13: -1 | AD13: 1 | AE13: -1 | AG13: 7 | AH13: 1703 | AI13: 3 | AJ13: 散修，喜欢在各地游历，对世间的天材地宝颇有研究。
A14: 10 | B14: 1962 | C14: =VLOOKUP(B14,[1]语言配置表!$A:$B,2,FALSE) -> 林风 | D14: 6 | E14: bg_lh_linfeng | F14: 0;107 | G14: dec_lh_linfeng | H14: 100 | I14: 1972 | J14: 1 | K14: 1972 | O14: 13505;13510;13516 | P14: 13505 | Q14: 13505 | R14: 13510 | S14: 13516 | U14: 2;22;43 | V14: 2 | W14: 22 | X14: 43 | Y14: =VLOOKUP(W14,guajibuff!$A:$C,3,FALSE) -> 商贾之道·中 | Z14: =VLOOKUP(X14,guajibuff!$A:$C,3,FALSE) -> 坎山寻宝·大 | AA14: 38 | AB14: =VLOOKUP(AA14,daolvSkill!A:E,5,FALSE) -> 土之灵根 | AC14: -1 | AD14: 1 | AE14: -1 | AG14: 8 | AH14: 1703 | AI14: 3 | AJ14: 师承不详，和师妹相依为命，对法宝锻造颇有研究。

Sheet emotionConfig
A1: ID | B1: type | C1: icon | D1: des | F1: hanganUpRate
A2: int | B2: int | C2: string | D2: int | F2: int[]
A4: ID | B4: 类型 1=好心情 2=平衡心情 3=坏心情 | C4: icon | D4: 描述ID | E4: 描述（策划） | F4: 心情影响好感度的范围 100=10%
A5: 1 | B5: 1 | D5: 2043 | E5: 心情很好，送他礼物可获得更多好感度 | F5: 1100;1300 | G5: 开心
A6: 2 | B6: 2 | D6: 2044 | E6: 心情一般 | F6: 900;1100 | G6: 一般
A7: 3 | B7: 3 | D7: 2045 | E7: 心情失落，送他礼物获得低于标准值的好感度 | F7: 700;900 | G7: 失落

Sheet daolvSkill
A1: ID | B1: AttrID | C1: lv | D1: name | F1: des | H1: para | I1: type
A2: int | B2: int | C2: int | D2: int | F2: int | H2: int[] | I2: int
A4: ID | B4: 对应AttributeConfig中的ID | C4: 等级 | D4: 名称 | E4: 名称 | F4: 描述 | G4: 描述 | H4: 参数 | I4: 类型 1=唯一 2=叠加 | J4: 成长所需礼物ID | K4: 每单位增加的值
A5: 1 | B5: 101 | C5: 1 | D5: 2046 | E5: 生命增幅 | F5: 2054 | G5: 玩家生命+{0}% | H5: 3 | I5: 2
A6: 2 | B6: 101 | C6: 2 | D6: 2046 | E6: 生命增幅 | F6: 2054 | G6: 玩家生命+{0}% | H6: 6 | I6: 2
A7: 3 | B7: 101 | C7: 3 | D7: 2046 | E7: 生命增幅 | F7: 2054 | G7: 玩家生命+{0}% | H7: 9 | I7: 2
A8: 4 | B8: 101 | C8: 4 | D8: 2046 | E8: 生命增幅 | F8: 2054 | G8: 玩家生命+{0}% | H8: 12 | I8: 2
A9: 5 | B9: 101 | C9: 5 | D9: 2046 | E9: 生命增幅 | F9: 2054 | G9: 玩家生命+{0}% | H9: 15 | I9: 2
A10: 6 | B10: 102 | C10: =C5 -> 1 | D10: 2047 | E10: 攻击增幅 | F10: 2055 | G10: 玩家攻击+{0}% | H10: 3 | I10: 2
A11: 7 | B11: 102 | C11: =C6 -> 2 | D11: 2047 | E11: 攻击增幅 | F11: 2055 | G11: 玩家攻击+{0}% | H11: 6 | I11: 2
A12: 8 | B12: 102 | C12: 3 | D12: 2047 | E12: 攻击增幅 | F12: 2055 | G12: 玩家攻击+{0}% | H12: 9 | I12: 2
A13: 9 | B13: 102 | C13: 4 | D13: 2047 | E13: 攻击增幅 | F13: 2055 | G13: 玩家攻击+{0}% | H13: 12 | I13: 2
A14: 10 | B14: 102 | C14: 5 | D14: 2047 | E14: 攻击增幅 | F14: 2055 | G14: 玩家攻击+{0}% | H14: 15 | I14: 2
A15: 11 | B15: 103 | C15: 1 | D15: 2048 | E15: 防御增幅 | F15: 2056 | G15: 玩家防御+{0}% | H15: 3 | I15: 2
A16: 12 | B16: 103 | C16: 2 | D16: 2048 | E16: 防御增幅 | F16: 2056 | G16: 玩家防御+{0}% | H16: 6 | I16: 2
A17: 13 | B17: 103 | C17: 3 | D17: 2048 | E17: 防御增幅 | F17: 2056 | G17: 玩家防御+{0}% | H17: 9 | I17: 2
A18: 14 | B18: 103 | C18: 4 | D18: 2048 | E18: 防御增幅 | F18: 2056 | G18: 玩家防御+{0}% | H18: 12 | I18: 2
A19: 15 | B19: 103 | C19: 5 | D19: 2048 | E19: 防御增幅 | F19: 2056 | G19: 玩家防御+{0}% | H19: 15 | I19: 2
A20: 16 | B20: 106 | C20: 1 | D20: 2049 | E20: 金之灵根 | F20: 2057 | G20: 玩家金灵根+{0} | H20: 2 | I20: 1
A21: 17 | B21: 106 | C21: 2 | D21: 2049 | E21: 金之灵根 | F21: 2057 | G21: 玩家金灵根+{0} | H21: 4 | I21: 1
A22: 18 | B22: 106 | C22: 3 | D22: 2049 | E22: 金之灵根 | F22: 2057 | G22: 玩家金灵根+{0} | H22: 6 | I22: 1
A23: 19 | B23: 106 | C23: 4 | D23: 2049 | E23: 金之灵根 | F23: 2057 | G23: 玩家金灵根+{0} | H23: 8 | I23: 1
A24: 20 | B24: 106 | C24: 5 | D24: 2049 | E24: 金之灵根 | F24: 2057 | G24: 玩家金灵根+{0} | H24: 10 | I24: 1
A25: 21 | B25: 107 | C25: 1 | D25: 2050 | E25: 水之灵根 | F25: 2058 | G25: 玩家水灵根+{0} | H25: 2 | I25: 1
A26: 22 | B26: 107 | C26: 2 | D26: 2050 | E26: 水之灵根 | F26: 2058 | G26: 玩家水灵根+{0} | H26: 4 | I26: 1
A27: 23 | B27: 107 | C27: 3 | D27: 2050 | E27: 水之灵根 | F27: 2058 | G27: 玩家水灵根+{0} | H27: 6 | I27: 1
A28: 24 | B28: 107 | C28: 4 | D28: 2050 | E28: 水之灵根 | F28: 2058 | G28: 玩家水灵根+{0} | H28: 8 | I28: 1
A29: 25 | B29: 107 | C29: 5 | D29: 2050 | E29: 水之灵根 | F29: 2058 | G29: 玩家水灵根+{0} | H29: 10 | I29: 1
A30: 26 | B30: 108 | C30: 1 | D30: 2051 | E30: 木之灵根 | F30: 2059 | G30: 玩家木灵根+{0} | H30: 2 | I30: 1
A31: 27 | B31: 108 | C31: 2 | D31: 2051 | E31: 木之灵根 | F31: 2059 | G31: 玩家木灵根+{0} | H31: 4 | I31: 1
A32: 28 | B32: 108 | C32: 3 | D32: 2051 | E32: 木之灵根 | F32: 2059 | G32: 玩家木灵根+{0} | H32: 6 | I32: 1
A33: 29 | B33: 108 | C33: 4 | D33: 2051 | E33: 木之灵根 | F33: 2059 | G33: 玩家木灵根+{0} | H33: 8 | I33: 1
A34: 30 | B34: 108 | C34: 5 | D34: 2051 | E34: 木之灵根 | F34: 2059 | G34: 玩家木灵根+{0} | H34: 10 | I34: 1
A35: 31 | B35: 109 | C35: 1 | D35: 2052 | E35: 火之灵根 | F35: 2060 | G35: 玩家火灵根+{0} | H35: 2 | I35: 1
A36: 32 | B36: 109 | C36: 2 | D36: 2052 | E36: 火之灵根 | F36: 2060 | G36: 玩家火灵根+{0} | H36: 4 | I36: 1
A37: 33 | B37: 109 | C37: 3 | D37: 2052 | E37: 火之灵根 | F37: 2060 | G37: 玩家火灵根+{0} | H37: 6 | I37: 1
A38: 34 | B38: 109 | C38: 4 | D38: 2052 | E38: 火之灵根 | F38: 2060 | G38: 玩家火灵根+{0} | H38: 8 | I38: 1
A39: 35 | B39: 109 | C39: 5 | D39: 2052 | E39: 火之灵根 | F39: 2060 | G39: 玩家火灵根+{0} | H39: 10 | I39: 1
A40: 36 | B40: 110 | C40: 1 | D40: 2053 | E40: 土之灵根 | F40: 2061 | G40: 玩家土灵根+{0} | H40: 2 | I40: 1
A41: 37 | B41: 110 | C41: 2 | D41: 2053 | E41: 土之灵根 | F41: 2061 | G41: 玩家土灵根+{0} | H41: 4 | I41: 1
A42: 38 | B42: 110 | C42: 3 | D42: 2053 | E42: 土之灵根 | F42: 2061 | G42: 玩家土灵根+{0} | H42: 6 | I42: 1
A43: 39 | B43: 110 | C43: 4 | D43: 2053 | E43: 土之灵根 | F43: 2061 | G43: 玩家土灵根+{0} | H43: 8 | I43: 1
A44: 40 | B44: 110 | C44: 5 | D44: 2053 | E44: 土之灵根 | F44: 2061 | G44: 玩家土灵根+{0} | H44: 10 | I44: 1

Sheet guajibuff
A1: ID | B1: name | D1: Quality | E1: GivingRate | F1: paraValue | G1: des
A2: int | B2: int | D2: int | E2: int | F2: int | G2: int
A4: ID | B4: 名称 | C4: 名称 | D4: 品质 | E4: 产出比例 100=100% | F4: 对应的para值 | G4: 描述 | H4: 说明
A5: 1 | B5: 2063 | C5: 慷概之心·小 | D5: 1 | E5: 25 | F5: 5 | G5: 2062 | H5: 这位道友离开时有{0}%概率赠与玩家奖励
A6: 2 | B6: 2064 | C6: 慷概之心·中 | D6: 1 | E6: 50 | F6: 5 | G6: 2062 | H6: 这位道友离开时有{0}%概率赠与玩家奖励
A7: 3 | B7: 2065 | C7: 慷概之心·大 | D7: 1 | E7: 75 | F7: 5 | G7: 2062 | H7: 这位道友离开时有{0}%概率赠与玩家奖励
A8: 4 | B8: 2066 | C8: 慷概之心·极 | D8: 1 | E8: 100 | F8: 5 | G8: 2062 | H8: 这位道友离开时有{0}%概率赠与玩家奖励
A10: 11 | B10: 1993 | C10: 双修之旅·小 | D10: 2 | E10: 25 | F10: 1 | G10: =B10+16 -> 2009 | H10: 这位道友离开时会给与玩家少量修为奖励
A11: 12 | B11: 1994 | C11: 双修之旅·中 | D11: 3 | E11: 50 | F11: 1 | G11: =B11+16 -> 2010 | H11: 这位道友离开时会给与玩家一些修为奖励
A12: 13 | B12: 1995 | C12: 双修之旅·大 | D12: 4 | E12: 75 | F12: 1 | G12: 2011 | H12: 这位道友离开时会给与玩家很多修为奖励
A13: 14 | B13: 1996 | C13: 双修之旅·极 | D13: 5 | E13: 100 | F13: 1 | G13: 2012 | H13: 这位道友离开时会给与玩家丰厚修为奖励
A15: 21 | B15: =B10+4 -> 1997 | C15: 商贾之道·小 | D15: 2 | E15: 25 | F15: 2 | G15: =B15+16 -> 2013 | H15: 这位道友离开时会给与玩家少量铜钱奖励
A16: 22 | B16: =B11+4 -> 1998 | C16: 商贾之道·中 | D16: 3 | E16: 50 | F16: 2 | G16: =B16+16 -> 2014 | H16: 这位道友离开时会给与玩家一些铜钱奖励
A17: 23 | B17: 1999 | C17: 商贾之道·大 | D17: 4 | E17: 75 | F17: 2 | G17: 2015 | H17: 这位道友离开时会给与玩家很多铜钱奖励
A18: 24 | B18: 2000 | C18: 商贾之道·极 | D18: 5 | E18: 100 | F18: 2 | G18: 2016 | H18: 这位道友离开时会给与玩家丰厚铜钱奖励
A20: 31 | B20: =B15+4 -> 2001 | C20: 席地论法·小 | D20: 2 | E20: 25 | F20: 3 | G20: =B20+16 -> 2017 | H20: 这位道友离开时会给与玩家少量功法灵气奖励
A21: 32 | B21: =B16+4 -> 2002 | C21: 席地论法·中 | D21: 3 | E21: 50 | F21: 3 | G21: =B21+16 -> 2018 | H21: 这位道友离开时会给与玩家一些功法灵气奖励
A22: 33 | B22: 2003 | C22: 席地论法·大 | D22: 4 | E22: 75 | F22: 3 | G22: 2019 | H22: 这位道友离开时会给与玩家很多功法灵气奖励
A23: 34 | B23: 2004 | C23: 席地论法·极 | D23: 5 | E23: 100 | F23: 3 | G23: 2020 | H23: 这位道友离开时会给与玩家丰厚功法灵气奖励
A25: 41 | B25: =B20+4 -> 2005 | C25: 坎山寻宝·小 | D25: 2 | E25: 25 | F25: 4 | G25: =B25+16 -> 2021 | H25: 这位道友离开时会给与玩家少量法宝灵韵奖励
A26: 42 | B26: =B21+4 -> 2006 | C26: 坎山寻宝·中 | D26: 3 | E26: 50 | F26: 4 | G26: =B26+16 -> 2022 | H26: 这位道友离开时会给与玩家一些法宝灵韵奖励
A27: 43 | B27: 2007 | C27: 坎山寻宝·大 | D27: 4 | E27: 75 | F27: 4 | G27: 2023 | H27: 这位道友离开时会给与玩家很多法宝灵韵奖励
A28: 44 | B28: 2008 | C28: 坎山寻宝·极 | D28: 5 | E28: 100 | F28: 4 | G28: 2024 | H28: 这位道友离开时会给与玩家丰厚法宝灵韵奖励

Sheet 道友加成辅助
A1: BuffType | C1: BuffValue
A2: 1 | B2: 属性加成 | C2: 属性ID；加成数值
A3: 2
A4: 3
A5: 4
A6: 5
A7: 6
A8: 7
A9: 8
A10: 9
A11: 10
A12: 11
A13: 12
A14: 13

Sheet DaoyouLevelupConfig
A1: ID | B1: name | D1: exp | E1: prizeID | F1: prizeNum | G1: guajiGrowup
A2: int | B2: int | D2: int | E2: int[] | F2: int[] | G2: int
A4: LV | B4: 名称 | D4: 升级所需经验 | E4: 道具奖励ID | F4: 道具奖励数量 | G4: 挂机增益成长率 100=100%
A5: 1 | B5: 2025 | C5: 好感度1 | D5: 1000 | E5: -1 | F5: -1 | G5: 0
A6: 2 | B6: 2026 | C6: 好感度2 | D6: 2000 | E6: 1002 | F6: 2000 | G6: 100
A7: 3 | B7: 2027 | C7: 好感度3 | D7: 3000 | E7: 1002 | F7: 2500 | G7: 112
A8: 4 | B8: 2028 | C8: 好感度4 | D8: 4000 | E8: 1002 | F8: 3000 | G8: 125
A9: 5 | B9: 2029 | C9: 好感度5 | D9: 5000 | E9: 1002 | F9: 3500 | G9: 137
A10: 6 | B10: 2030 | C10: 好感度6 | D10: 6000 | E10: 1002 | F10: 4000 | G10: 150
A11: 7 | B11: 2031 | C11: 好感度7 | D11: 7000 | E11: 1002 | F11: 4500 | G11: 162
A12: 8 | B12: 2032 | C12: 好感度8 | D12: 8000 | E12: 1002 | F12: 5000 | G12: 175
A13: 9 | B13: 2033 | C13: 好感度9 | D13: 9000 | E13: 1002 | F13: 5500 | G13: 187
A14: 10 | B14: 2034 | C14: 好感度10 | D14: -1 | E14: 1002 | F14: 6000 | G14: 200

Sheet DaoyouGiftConfig
A1: ID | B1: ItemID | D1: emotionValue
A2: int | B2: int | D2: int
A4: ID | B4: 道具ID | C4: 道具名称 | D4: 默认增加的好感度值
A5: 1 | B5: 1501 | C5: =VLOOKUP(B5,[2]ItemConfig!$A:$C,3,FALSE) -> 清茶 | D5: 300
A6: 2 | B6: 1502 | C6: =VLOOKUP(B6,[2]ItemConfig!$A:$C,3,FALSE) -> 茉莉花茶 | D6: 500
A8: 301 | B8: 1201 | C8: =VLOOKUP(B8,[2]ItemConfig!$A:$C,3,FALSE) -> 灵血草 | D8: 100
A9: 302 | B9: 1202 | C9: =VLOOKUP(B9,[2]ItemConfig!$A:$C,3,FALSE) -> 玄玉髓 | D9: 100
A10: 303 | B10: 1203 | C10: =VLOOKUP(B10,[2]ItemConfig!$A:$C,3,FALSE) -> 赤阳砂 | D10: 100
A11: 304 | B11: 1204 | C11: =VLOOKUP(B11,[2]ItemConfig!$A:$C,3,FALSE) -> 火灵果 | D11: 100
A12: 305 | B12: 1205 | C12: =VLOOKUP(B12,[2]ItemConfig!$A:$C,3,FALSE) -> 婴魂草 | D12: 100
A13: 306 | B13: 1206 | C13: =VLOOKUP(B13,[2]ItemConfig!$A:$C,3,FALSE) -> 灵魄藤 | D13: 100
A14: 307 | B14: 1207 | C14: =VLOOKUP(B14,[2]ItemConfig!$A:$C,3,FALSE) -> 灵冥石 | D14: 100
A15: 308 | B15: 1208 | C15: =VLOOKUP(B15,[2]ItemConfig!$A:$C,3,FALSE) -> 玄金砂 | D15: 100
A16: 309 | B16: 1209 | C16: =VLOOKUP(B16,[2]ItemConfig!$A:$C,3,FALSE) -> 紫玄晶 | D16: 100
A17: 310 | B17: 1210 | C17: =VLOOKUP(B17,[2]ItemConfig!$A:$C,3,FALSE) -> 丹心花 | D17: 100
A18: 311 | B18: 1211 | C18: =VLOOKUP(B18,[2]ItemConfig!$A:$C,3,FALSE) -> 太冥草 | D18: 100
A19: 312 | B19: 1212 | C19: =VLOOKUP(B19,[2]ItemConfig!$A:$C,3,FALSE) -> 星炎草 | D19: 100
A20: 313 | B20: 1213 | C20: =VLOOKUP(B20,[2]ItemConfig!$A:$C,3,FALSE) -> 混元晶 | D20: 100
A21: 314 | B21: 1214 | C21: =VLOOKUP(B21,[2]ItemConfig!$A:$C,3,FALSE) -> 地髓晶 | D21: 100
A22: 315 | B22: 1215 | C22: =VLOOKUP(B22,[2]ItemConfig!$A:$C,3,FALSE) -> 灵月石 | D22: 100
A23: 316 | B23: 1216 | C23: =VLOOKUP(B23,[2]ItemConfig!$A:$C,3,FALSE) -> 玄雷果 | D23: 100
A24: 317 | B24: 1217 | C24: =VLOOKUP(B24,[2]ItemConfig!$A:$C,3,FALSE) -> 龙筋草 | D24: 100
A25: 318 | B25: 1218 | C25: =VLOOKUP(B25,[2]ItemConfig!$A:$C,3,FALSE) -> 太虚花 | D25: 100
A26: 319 | B26: 1219 | C26: =VLOOKUP(B26,[2]ItemConfig!$A:$C,3,FALSE) -> 升仙丹 | D26: 100
A27: 320 | B27: 1220 | C27: =VLOOKUP(B27,[2]ItemConfig!$A:$C,3,FALSE) -> 归虚花 | D27: 100
A28: 321 | B28: 1221 | C28: =VLOOKUP(B28,[2]ItemConfig!$A:$C,3,FALSE) -> 真阳骨 | D28: 100
A29: 322 | B29: 1222 | C29: =VLOOKUP(B29,[2]ItemConfig!$A:$C,3,FALSE) -> 太玄髓 | D29: 100
A30: 323 | B30: 1223 | C30: =VLOOKUP(B30,[2]ItemConfig!$A:$C,3,FALSE) -> 离魄花 | D30: 100
A31: 324 | B31: 1224 | C31: =VLOOKUP(B31,[2]ItemConfig!$A:$C,3,FALSE) -> 裂界藤 | D31: 100
A32: 325 | B32: 1225 | C32: =VLOOKUP(B32,[2]ItemConfig!$A:$C,3,FALSE) -> 寂灭沙 | D32: 100
A33: 326 | B33: 1226 | C33: =VLOOKUP(B33,[2]ItemConfig!$A:$C,3,FALSE) -> 天罡心核 | D33: 100
A35: 501 | B35: 13001 | C35: =VLOOKUP(B35,[2]ItemConfig!$A:$C,3,FALSE) -> 太虚幻剑经碎片 | D35: 1
A36: 502 | B36: 13002 | C36: =VLOOKUP(B36,[2]ItemConfig!$A:$C,3,FALSE) -> 天罡剑气诀碎片 | D36: 1
A37: 503 | B37: 13003 | C37: =VLOOKUP(B37,[2]ItemConfig!$A:$C,3,FALSE) -> 血刃金煌功碎片 | D37: 1
A38: 504 | B38: 13004 | C38: =VLOOKUP(B38,[2]ItemConfig!$A:$C,3,FALSE) -> 飞刃碎片 | D38: 1
A39: 505 | B39: 13005 | C39: =VLOOKUP(B39,[2]ItemConfig!$A:$C,3,FALSE) -> 金针碎片 | D39: 1
A40: 506 | B40: 13006 | C40: =VLOOKUP(B40,[2]ItemConfig!$A:$C,3,FALSE) -> 碧落幽冥劲碎片 | D40: 1
A41: 507 | B41: 13007 | C41: =VLOOKUP(B41,[2]ItemConfig!$A:$C,3,FALSE) -> 雾隐千流法碎片 | D41: 1
A42: 508 | B42: 13008 | C42: =VLOOKUP(B42,[2]ItemConfig!$A:$C,3,FALSE) -> 功法-水3碎片 | D42: 1
A43: 509 | B43: 13009 | C43: =VLOOKUP(B43,[2]ItemConfig!$A:$C,3,FALSE) -> 水球碎片 | D43: 1
A44: 510 | B44: 13010 | C44: =VLOOKUP(B44,[2]ItemConfig!$A:$C,3,FALSE) -> 冰刀碎片 | D44: 1
A45: 511 | B45: 13011 | C45: =VLOOKUP(B45,[2]ItemConfig!$A:$C,3,FALSE) -> 瘴影千丝术碎片 | D45: 1
A46: 512 | B46: 13012 | C46: =VLOOKUP(B46,[2]ItemConfig!$A:$C,3,FALSE) -> 蚀骨腐血掌碎片 | D46: 1
A47: 513 | B47: 13013 | C47: =VLOOKUP(B47,[2]ItemConfig!$A:$C,3,FALSE) -> 功法-木3碎片 | D47: 1
A48: 514 | B48: 13014 | C48: =VLOOKUP(B48,[2]ItemConfig!$A:$C,3,FALSE) -> 竹刺碎片 | D48: 1
A49: 515 | B49: 13015 | C49: =VLOOKUP(B49,[2]ItemConfig!$A:$C,3,FALSE) -> 飞叶碎片 | D49: 1
A50: 516 | B50: 13016 | C50: =VLOOKUP(B50,[2]ItemConfig!$A:$C,3,FALSE) -> 烈焰剑碎片 | D50: 1
A51: 517 | B51: 13017 | C51: =VLOOKUP(B51,[2]ItemConfig!$A:$C,3,FALSE) -> 赤焰龙吟功碎片 | D51: 1
A52: 518 | B52: 13018 | C52: =VLOOKUP(B52,[2]ItemConfig!$A:$C,3,FALSE) -> 朱雀燎原指碎片 | D52: 1
A53: 519 | B53: 13019 | C53: =VLOOKUP(B53,[2]ItemConfig!$A:$C,3,FALSE) -> 火球碎片 | D53: 1
A54: 520 | B54: 13020 | C54: =VLOOKUP(B54,[2]ItemConfig!$A:$C,3,FALSE) -> 火刀碎片 | D54: 1
A55: 521 | B55: 13021 | C55: =VLOOKUP(B55,[2]ItemConfig!$A:$C,3,FALSE) -> 黄尘灭魂刺碎片 | D55: 1
A56: 522 | B56: 13022 | C56: =VLOOKUP(B56,[2]ItemConfig!$A:$C,3,FALSE) -> 地裂屠龙斩碎片 | D56: 1
A57: 523 | B57: 13023 | C57: =VLOOKUP(B57,[2]ItemConfig!$A:$C,3,FALSE) -> 功法-土3碎片 | D57: 1
A58: 524 | B58: 13024 | C58: =VLOOKUP(B58,[2]ItemConfig!$A:$C,3,FALSE) -> 落石碎片 | D58: 1
A59: 525 | B59: 13025 | C59: =VLOOKUP(B59,[2]ItemConfig!$A:$C,3,FALSE) -> 小石头碎片 | D59: 1
A60: 526 | B60: 13501 | C60: =VLOOKUP(B60,[2]ItemConfig!$A:$C,3,FALSE) -> 天衍星辰诀碎片 | D60: 1
A61: 527 | B61: 13502 | C61: =VLOOKUP(B61,[2]ItemConfig!$A:$C,3,FALSE) -> 法宝秘籍碎片 | D61: 1
A62: 528 | B62: 13503 | C62: =VLOOKUP(B62,[2]ItemConfig!$A:$C,3,FALSE) -> 崩脉决碎片 | D62: 1
A63: 529 | B63: 13504 | C63: =VLOOKUP(B63,[2]ItemConfig!$A:$C,3,FALSE) -> 两仪决碎片 | D63: 1
A64: 530 | B64: 13505 | C64: =VLOOKUP(B64,[2]ItemConfig!$A:$C,3,FALSE) -> 火焰决碎片 | D64: 1
A65: 531 | B65: 13506 | C65: =VLOOKUP(B65,[2]ItemConfig!$A:$C,3,FALSE) -> 乾坤巨灵诀碎片 | D65: 1
A66: 532 | B66: 13507 | C66: =VLOOKUP(B66,[2]ItemConfig!$A:$C,3,FALSE) -> 极速齿轮碎片 | D66: 1
A67: 533 | B67: 13508 | C67: =VLOOKUP(B67,[2]ItemConfig!$A:$C,3,FALSE) -> 太虚剑意碎片 | D67: 1
A68: 534 | B68: 13509 | C68: =VLOOKUP(B68,[2]ItemConfig!$A:$C,3,FALSE) -> 青莲净体诀碎片 | D68: 1
A69: 535 | B69: 13510 | C69: =VLOOKUP(B69,[2]ItemConfig!$A:$C,3,FALSE) -> 碧霄回春术碎片 | D69: 1
A70: 536 | B70: 13511 | C70: =VLOOKUP(B70,[2]ItemConfig!$A:$C,3,FALSE) -> 血祭神通碎片 | D70: 1
A71: 537 | B71: 13512 | C71: =VLOOKUP(B71,[2]ItemConfig!$A:$C,3,FALSE) -> 金煞决碎片 | D71: 1
A72: 538 | B72: 13513 | C72: =VLOOKUP(B72,[2]ItemConfig!$A:$C,3,FALSE) -> 毒瘴领域碎片 | D72: 1
A73: 539 | B73: 13514 | C73: =VLOOKUP(B73,[2]ItemConfig!$A:$C,3,FALSE) -> 毒爆碎片 | D73: 1
A74: 540 | B74: 13515 | C74: =VLOOKUP(B74,[2]ItemConfig!$A:$C,3,FALSE) -> 异常转移碎片 | D74: 1
A75: 541 | B75: 13516 | C75: =VLOOKUP(B75,[2]ItemConfig!$A:$C,3,FALSE) -> 阴水碎片 | D75: 1
A76: 542 | B76: 13517 | C76: =VLOOKUP(B76,[2]ItemConfig!$A:$C,3,FALSE) -> 灵油碎片 | D76: 1
A77: 543 | B77: 13518 | C77: =VLOOKUP(B77,[2]ItemConfig!$A:$C,3,FALSE) -> 厚土护体碎片 | D77: 1
A78: 544 | B78: 13519 | C78: =VLOOKUP(B78,[2]ItemConfig!$A:$C,3,FALSE) -> 金沙碎片 | D78: 1
A79: 545 | B79: 11001 | C79: =VLOOKUP(B79,[2]ItemConfig!$A:$C,3,FALSE) -> 神龙鼎碎片 | D79: 1
A80: 546 | B80: 11002 | C80: =VLOOKUP(B80,[2]ItemConfig!$A:$C,3,FALSE) -> 噬空齿刃碎片 | D80: 1
A81: 547 | B81: 11003 | C81: =VLOOKUP(B81,[2]ItemConfig!$A:$C,3,FALSE) -> 翡翠葫芦碎片 | D81: 1
A82: 548 | B82: 11004 | C82: =VLOOKUP(B82,[2]ItemConfig!$A:$C,3,FALSE) -> 混沌珠碎片 | D82: 1
A83: 549 | B83: 11005 | C83: =VLOOKUP(B83,[2]ItemConfig!$A:$C,3,FALSE) -> 绝脉瓶碎片 | D83: 1
A84: 550 | B84: 11006 | C84: =VLOOKUP(B84,[2]ItemConfig!$A:$C,3,FALSE) -> 九幽镇魂瓶碎片 | D84: 1
A85: 551 | B85: 11007 | C85: =VLOOKUP(B85,[2]ItemConfig!$A:$C,3,FALSE) -> 玉莲守心灯碎片 | D85: 1
A86: 552 | B86: 11008 | C86: =VLOOKUP(B86,[2]ItemConfig!$A:$C,3,FALSE) -> 融灵塔碎片 | D86: 1
A87: 553 | B87: 11009 | C87: =VLOOKUP(B87,[2]ItemConfig!$A:$C,3,FALSE) -> 禁元珠碎片 | D87: 1
A88: 554 | B88: 11010 | C88: =VLOOKUP(B88,[2]ItemConfig!$A:$C,3,FALSE) -> 玄龟盾碎片 | D88: 1
A89: 555 | B89: 11011 | C89: =VLOOKUP(B89,[2]ItemConfig!$A:$C,3,FALSE) -> 天殇血刃剑碎片 | D89: 1

Sheet DaoyouguajiResourcLevel
A1: ID | B1: para1 | C1: para2 | D1: para3 | E1: para4 | F1: para5
A2: int | B2: int | C2: int | D2: int | E2: int | F2: int
A4: ID | B4: 玩家修为产出 | C4: 铜钱产出 | D4: 功法灵气 | E4: 法宝灵韵 | F4: 赠与概率 | G4: 倍率调整 | H4: 2
A5: 1 | B5: =ROUND([3]ResourceLevelConfig!$E5*H$4,0) -> 200 | C5: =ROUND([3]ResourceLevelConfig!$C5*H$4,0) -> 2000 | D5: =ROUND([3]ResourceLevelConfig!$G5*H$4,0) -> 100 | E5: =ROUND([3]ResourceLevelConfig!$H5*H$4,0) -> 100 | F5: 501
A6: 2 | B6: =ROUND([3]ResourceLevelConfig!$E6*H$4,0) -> 200 | C6: =ROUND([3]ResourceLevelConfig!$C6*H$4,0) -> 2020 | D6: =ROUND([3]ResourceLevelConfig!$G6*H$4,0) -> 101 | E6: =ROUND([3]ResourceLevelConfig!$H6*H$4,0) -> 101 | F6: 502
A7: 3 | B7: =ROUND([3]ResourceLevelConfig!$E7*H$4,0) -> 200 | C7: =ROUND([3]ResourceLevelConfig!$C7*H$4,0) -> 2040 | D7: =ROUND([3]ResourceLevelConfig!$G7*H$4,0) -> 102 | E7: =ROUND([3]ResourceLevelConfig!$H7*H$4,0) -> 102 | F7: 503
A8: 4 | B8: =ROUND([3]ResourceLevelConfig!$E8*H$4,0) -> 200 | C8: =ROUND([3]ResourceLevelConfig!$C8*H$4,0) -> 2060 | D8: =ROUND([3]ResourceLevelConfig!$G8*H$4,0) -> 103 | E8: =ROUND([3]ResourceLevelConfig!$H8*H$4,0) -> 103 | F8: 504
A9: 5 | B9: =ROUND([3]ResourceLevelConfig!$E9*H$4,0) -> 200 | C9: =ROUND([3]ResourceLevelConfig!$C9*H$4,0) -> 2080 | D9: =ROUND([3]ResourceLevelConfig!$G9*H$4,0) -> 104 | E9: =ROUND([3]ResourceLevelConfig!$H9*H$4,0) -> 104 | F9: 505
A10: 6 | B10: =ROUND([3]ResourceLevelConfig!$E10*H$4,0) -> 220 | C10: =ROUND([3]ResourceLevelConfig!$C10*H$4,0) -> 2100 | D10: =ROUND([3]ResourceLevelConfig!$G10*H$4,0) -> 105 | E10: =ROUND([3]ResourceLevelConfig!$H10*H$4,0) -> 105 | F10: 506
A11: 7 | B11: =ROUND([3]ResourceLevelConfig!$E11*H$4,0) -> 220 | C11: =ROUND([3]ResourceLevelConfig!$C11*H$4,0) -> 2120 | D11: =ROUND([3]ResourceLevelConfig!$G11*H$4,0) -> 106 | E11: =ROUND([3]ResourceLevelConfig!$H11*H$4,0) -> 106 | F11: 507
A12: 8 | B12: =ROUND([3]ResourceLevelConfig!$E12*H$4,0) -> 220 | C12: =ROUND([3]ResourceLevelConfig!$C12*H$4,0) -> 2140 | D12: =ROUND([3]ResourceLevelConfig!$G12*H$4,0) -> 107 | E12: =ROUND([3]ResourceLevelConfig!$H12*H$4,0) -> 107 | F12: 508
A13: 9 | B13: =ROUND([3]ResourceLevelConfig!$E13*H$4,0) -> 220 | C13: =ROUND([3]ResourceLevelConfig!$C13*H$4,0) -> 2160 | D13: =ROUND([3]ResourceLevelConfig!$G13*H$4,0) -> 108 | E13: =ROUND([3]ResourceLevelConfig!$H13*H$4,0) -> 108 | F13: 509
A14: 10 | B14: =ROUND([3]ResourceLevelConfig!$E14*H$4,0) -> 220 | C14: =ROUND([3]ResourceLevelConfig!$C14*H$4,0) -> 2180 | D14: =ROUND([3]ResourceLevelConfig!$G14*H$4,0) -> 109 | E14: =ROUND([3]ResourceLevelConfig!$H14*H$4,0) -> 109 | F14: 510
A15: 11 | B15: =ROUND([3]ResourceLevelConfig!$E15*H$4,0) -> 220 | C15: =ROUND([3]ResourceLevelConfig!$C15*H$4,0) -> 2200 | D15: =ROUND([3]ResourceLevelConfig!$G15*H$4,0) -> 110 | E15: =ROUND([3]ResourceLevelConfig!$H15*H$4,0) -> 110 | F15: 511
A16: 12 | B16: =ROUND([3]ResourceLevelConfig!$E16*H$4,0) -> 220 | C16: =ROUND([3]ResourceLevelConfig!$C16*H$4,0) -> 2220 | D16: =ROUND([3]ResourceLevelConfig!$G16*H$4,0) -> 111 | E16: =ROUND([3]ResourceLevelConfig!$H16*H$4,0) -> 111 | F16: 512
A17: 13 | B17: =ROUND([3]ResourceLevelConfig!$E17*H$4,0) -> 220 | C17: =ROUND([3]ResourceLevelConfig!$C17*H$4,0) -> 2240 | D17: =ROUND([3]ResourceLevelConfig!$G17*H$4,0) -> 112 | E17: =ROUND([3]ResourceLevelConfig!$H17*H$4,0) -> 112 | F17: 513
A18: 14 | B18: =ROUND([3]ResourceLevelConfig!$E18*H$4,0) -> 220 | C18: =ROUND([3]ResourceLevelConfig!$C18*H$4,0) -> 2260 | D18: =ROUND([3]ResourceLevelConfig!$G18*H$4,0) -> 113 | E18: =ROUND([3]ResourceLevelConfig!$H18*H$4,0) -> 113 | F18: 514
A19: 15 | B19: =ROUND([3]ResourceLevelConfig!$E19*H$4,0) -> 220 | C19: =ROUND([3]ResourceLevelConfig!$C19*H$4,0) -> 2280 | D19: =ROUND([3]ResourceLevelConfig!$G19*H$4,0) -> 114 | E19: =ROUND([3]ResourceLevelConfig!$H19*H$4,0) -> 114 | F19: 515
A20: 16 | B20: =ROUND([3]ResourceLevelConfig!$E20*H$4,0) -> 240 | C20: =ROUND([3]ResourceLevelConfig!$C20*H$4,0) -> 2300 | D20: =ROUND([3]ResourceLevelConfig!$G20*H$4,0) -> 115 | E20: =ROUND([3]ResourceLevelConfig!$H20*H$4,0) -> 115 | F20: 516
A21: 17 | B21: =ROUND([3]ResourceLevelConfig!$E21*H$4,0) -> 240 | C21: =ROUND([3]ResourceLevelConfig!$C21*H$4,0) -> 2320 | D21: =ROUND([3]ResourceLevelConfig!$G21*H$4,0) -> 116 | E21: =ROUND([3]ResourceLevelConfig!$H21*H$4,0) -> 116 | F21: 517
A22: 18 | B22: =ROUND([3]ResourceLevelConfig!$E22*H$4,0) -> 240 | C22: =ROUND([3]ResourceLevelConfig!$C22*H$4,0) -> 2340 | D22: =ROUND([3]ResourceLevelConfig!$G22*H$4,0) -> 117 | E22: =ROUND([3]ResourceLevelConfig!$H22*H$4,0) -> 117 | F22: 518
A23: 19 | B23: =ROUND([3]ResourceLevelConfig!$E23*H$4,0) -> 240 | C23: =ROUND([3]ResourceLevelConfig!$C23*H$4,0) -> 2360 | D23: =ROUND([3]ResourceLevelConfig!$G23*H$4,0) -> 118 | E23: =ROUND([3]ResourceLevelConfig!$H23*H$4,0) -> 118 | F23: 519
A24: 20 | B24: =ROUND([3]ResourceLevelConfig!$E24*H$4,0) -> 240 | C24: =ROUND([3]ResourceLevelConfig!$C24*H$4,0) -> 2380 | D24: =ROUND([3]ResourceLevelConfig!$G24*H$4,0) -> 119 | E24: =ROUND([3]ResourceLevelConfig!$H24*H$4,0) -> 119 | F24: 520
A25: 21 | B25: =ROUND([3]ResourceLevelConfig!$E25*H$4,0) -> 240 | C25: =ROUND([3]ResourceLevelConfig!$C25*H$4,0) -> 2400 | D25: =ROUND([3]ResourceLevelConfig!$G25*H$4,0) -> 120 | E25: =ROUND([3]ResourceLevelConfig!$H25*H$4,0) -> 120 | F25: 521
A26: 22 | B26: =ROUND([3]ResourceLevelConfig!$E26*H$4,0) -> 240 | C26: =ROUND([3]ResourceLevelConfig!$C26*H$4,0) -> 2420 | D26: =ROUND([3]ResourceLevelConfig!$G26*H$4,0) -> 121 | E26: =ROUND([3]ResourceLevelConfig!$H26*H$4,0) -> 121 | F26: 522
A27: 23 | B27: =ROUND([3]ResourceLevelConfig!$E27*H$4,0) -> 240 | C27: =ROUND([3]ResourceLevelConfig!$C27*H$4,0) -> 2440 | D27: =ROUND([3]ResourceLevelConfig!$G27*H$4,0) -> 122 | E27: =ROUND([3]ResourceLevelConfig!$H27*H$4,0) -> 122 | F27: 523
A28: 24 | B28: =ROUND([3]ResourceLevelConfig!$E28*H$4,0) -> 240 | C28: =ROUND([3]ResourceLevelConfig!$C28*H$4,0) -> 2460 | D28: =ROUND([3]ResourceLevelConfig!$G28*H$4,0) -> 123 | E28: =ROUND([3]ResourceLevelConfig!$H28*H$4,0) -> 123 | F28: 524
A29: 25 | B29: =ROUND([3]ResourceLevelConfig!$E29*H$4,0) -> 240 | C29: =ROUND([3]ResourceLevelConfig!$C29*H$4,0) -> 2480 | D29: =ROUND([3]ResourceLevelConfig!$G29*H$4,0) -> 124 | E29: =ROUND([3]ResourceLevelConfig!$H29*H$4,0) -> 124 | F29: 525
A30: 26 | B30: =ROUND([3]ResourceLevelConfig!$E30*H$4,0) -> 260 | C30: =ROUND([3]ResourceLevelConfig!$C30*H$4,0) -> 2500 | D30: =ROUND([3]ResourceLevelConfig!$G30*H$4,0) -> 125 | E30: =ROUND([3]ResourceLevelConfig!$H30*H$4,0) -> 125 | F30: 526
A31: 27 | B31: =ROUND([3]ResourceLevelConfig!$E31*H$4,0) -> 260 | C31: =ROUND([3]ResourceLevelConfig!$C31*H$4,0) -> 2520 | D31: =ROUND([3]ResourceLevelConfig!$G31*H$4,0) -> 126 | E31: =ROUND([3]ResourceLevelConfig!$H31*H$4,0) -> 126 | F31: 527
A32: 28 | B32: =ROUND([3]ResourceLevelConfig!$E32*H$4,0) -> 260 | C32: =ROUND([3]ResourceLevelConfig!$C32*H$4,0) -> 2540 | D32: =ROUND([3]ResourceLevelConfig!$G32*H$4,0) -> 127 | E32: =ROUND([3]ResourceLevelConfig!$H32*H$4,0) -> 127 | F32: 528
A33: 29 | B33: =ROUND([3]ResourceLevelConfig!$E33*H$4,0) -> 260 | C33: =ROUND([3]ResourceLevelConfig!$C33*H$4,0) -> 2560 | D33: =ROUND([3]ResourceLevelConfig!$G33*H$4,0) -> 128 | E33: =ROUND([3]ResourceLevelConfig!$H33*H$4,0) -> 128 | F33: 529
A34: 30 | B34: =ROUND([3]ResourceLevelConfig!$E34*H$4,0) -> 260 | C34: =ROUND([3]ResourceLevelConfig!$C34*H$4,0) -> 2580 | D34: =ROUND([3]ResourceLevelConfig!$G34*H$4,0) -> 129 | E34: =ROUND([3]ResourceLevelConfig!$H34*H$4,0) -> 129 | F34: 530
A35: 31 | B35: =ROUND([3]ResourceLevelConfig!$E35*H$4,0) -> 260 | C35: =ROUND([3]ResourceLevelConfig!$C35*H$4,0) -> 2600 | D35: =ROUND([3]ResourceLevelConfig!$G35*H$4,0) -> 130 | E35: =ROUND([3]ResourceLevelConfig!$H35*H$4,0) -> 130 | F35: 531
A36: 32 | B36: =ROUND([3]ResourceLevelConfig!$E36*H$4,0) -> 260 | C36: =ROUND([3]ResourceLevelConfig!$C36*H$4,0) -> 2620 | D36: =ROUND([3]ResourceLevelConfig!$G36*H$4,0) -> 131 | E36: =ROUND([3]ResourceLevelConfig!$H36*H$4,0) -> 131 | F36: 532
A37: 33 | B37: =ROUND([3]ResourceLevelConfig!$E37*H$4,0) -> 260 | C37: =ROUND([3]ResourceLevelConfig!$C37*H$4,0) -> 2640 | D37: =ROUND([3]ResourceLevelConfig!$G37*H$4,0) -> 132 | E37: =ROUND([3]ResourceLevelConfig!$H37*H$4,0) -> 132 | F37: 533
A38: 34 | B38: =ROUND([3]ResourceLevelConfig!$E38*H$4,0) -> 260 | C38: =ROUND([3]ResourceLevelConfig!$C38*H$4,0) -> 2660 | D38: =ROUND([3]ResourceLevelConfig!$G38*H$4,0) -> 133 | E38: =ROUND([3]ResourceLevelConfig!$H38*H$4,0) -> 133 | F38: 534
A39: 35 | B39: =ROUND([3]ResourceLevelConfig!$E39*H$4,0) -> 260 | C39: =ROUND([3]ResourceLevelConfig!$C39*H$4,0) -> 2680 | D39: =ROUND([3]ResourceLevelConfig!$G39*H$4,0) -> 134 | E39: =ROUND([3]ResourceLevelConfig!$H39*H$4,0) -> 134 | F39: 535
A40: 36 | B40: =ROUND([3]ResourceLevelConfig!$E40*H$4,0) -> 280 | C40: =ROUND([3]ResourceLevelConfig!$C40*H$4,0) -> 2700 | D40: =ROUND([3]ResourceLevelConfig!$G40*H$4,0) -> 135 | E40: =ROUND([3]ResourceLevelConfig!$H40*H$4,0) -> 135 | F40: 536
A41: 37 | B41: =ROUND([3]ResourceLevelConfig!$E41*H$4,0) -> 280 | C41: =ROUND([3]ResourceLevelConfig!$C41*H$4,0) -> 2720 | D41: =ROUND([3]ResourceLevelConfig!$G41*H$4,0) -> 136 | E41: =ROUND([3]ResourceLevelConfig!$H41*H$4,0) -> 136 | F41: 537
A42: 38 | B42: =ROUND([3]ResourceLevelConfig!$E42*H$4,0) -> 280 | C42: =ROUND([3]ResourceLevelConfig!$C42*H$4,0) -> 2740 | D42: =ROUND([3]ResourceLevelConfig!$G42*H$4,0) -> 137 | E42: =ROUND([3]ResourceLevelConfig!$H42*H$4,0) -> 137 | F42: 538
A43: 39 | B43: =ROUND([3]ResourceLevelConfig!$E43*H$4,0) -> 280 | C43: =ROUND([3]ResourceLevelConfig!$C43*H$4,0) -> 2760 | D43: =ROUND([3]ResourceLevelConfig!$G43*H$4,0) -> 138 | E43: =ROUND([3]ResourceLevelConfig!$H43*H$4,0) -> 138 | F43: 539
A44: 40 | B44: =ROUND([3]ResourceLevelConfig!$E44*H$4,0) -> 280 | C44: =ROUND([3]ResourceLevelConfig!$C44*H$4,0) -> 2780 | D44: =ROUND([3]ResourceLevelConfig!$G44*H$4,0) -> 139 | E44: =ROUND([3]ResourceLevelConfig!$H44*H$4,0) -> 139 | F44: 540
A45: 41 | B45: =ROUND([3]ResourceLevelConfig!$E45*H$4,0) -> 280 | C45: =ROUND([3]ResourceLevelConfig!$C45*H$4,0) -> 2800 | D45: =ROUND([3]ResourceLevelConfig!$G45*H$4,0) -> 140 | E45: =ROUND([3]ResourceLevelConfig!$H45*H$4,0) -> 140 | F45: 541
A46: 42 | B46: =ROUND([3]ResourceLevelConfig!$E46*H$4,0) -> 280 | C46: =ROUND([3]ResourceLevelConfig!$C46*H$4,0) -> 2820 | D46: =ROUND([3]ResourceLevelConfig!$G46*H$4,0) -> 141 | E46: =ROUND([3]ResourceLevelConfig!$H46*H$4,0) -> 141 | F46: 542
A47: 43 | B47: =ROUND([3]ResourceLevelConfig!$E47*H$4,0) -> 280 | C47: =ROUND([3]ResourceLevelConfig!$C47*H$4,0) -> 2840 | D47: =ROUND([3]ResourceLevelConfig!$G47*H$4,0) -> 142 | E47: =ROUND([3]ResourceLevelConfig!$H47*H$4,0) -> 142 | F47: 543
A48: 44 | B48: =ROUND([3]ResourceLevelConfig!$E48*H$4,0) -> 280 | C48: =ROUND([3]ResourceLevelConfig!$C48*H$4,0) -> 2860 | D48: =ROUND([3]ResourceLevelConfig!$G48*H$4,0) -> 143 | E48: =ROUND([3]ResourceLevelConfig!$H48*H$4,0) -> 143 | F48: 544
A49: 45 | B49: =ROUND([3]ResourceLevelConfig!$E49*H$4,0) -> 280 | C49: =ROUND([3]ResourceLevelConfig!$C49*H$4,0) -> 2880 | D49: =ROUND([3]ResourceLevelConfig!$G49*H$4,0) -> 144 | E49: =ROUND([3]ResourceLevelConfig!$H49*H$4,0) -> 144 | F49: 545
A50: 46 | B50: =ROUND([3]ResourceLevelConfig!$E50*H$4,0) -> 300 | C50: =ROUND([3]ResourceLevelConfig!$C50*H$4,0) -> 2900 | D50: =ROUND([3]ResourceLevelConfig!$G50*H$4,0) -> 145 | E50: =ROUND([3]ResourceLevelConfig!$H50*H$4,0) -> 145 | F50: 546
A51: 47 | B51: =ROUND([3]ResourceLevelConfig!$E51*H$4,0) -> 300 | C51: =ROUND([3]ResourceLevelConfig!$C51*H$4,0) -> 2920 | D51: =ROUND([3]ResourceLevelConfig!$G51*H$4,0) -> 146 | E51: =ROUND([3]ResourceLevelConfig!$H51*H$4,0) -> 146 | F51: 547
A52: 48 | B52: =ROUND([3]ResourceLevelConfig!$E52*H$4,0) -> 300 | C52: =ROUND([3]ResourceLevelConfig!$C52*H$4,0) -> 2940 | D52: =ROUND([3]ResourceLevelConfig!$G52*H$4,0) -> 147 | E52: =ROUND([3]ResourceLevelConfig!$H52*H$4,0) -> 147 | F52: 548
A53: 49 | B53: =ROUND([3]ResourceLevelConfig!$E53*H$4,0) -> 300 | C53: =ROUND([3]ResourceLevelConfig!$C53*H$4,0) -> 2960 | D53: =ROUND([3]ResourceLevelConfig!$G53*H$4,0) -> 148 | E53: =ROUND([3]ResourceLevelConfig!$H53*H$4,0) -> 148 | F53: 549
A54: 50 | B54: =ROUND([3]ResourceLevelConfig!$E54*H$4,0) -> 300 | C54: =ROUND([3]ResourceLevelConfig!$C54*H$4,0) -> 2980 | D54: =ROUND([3]ResourceLevelConfig!$G54*H$4,0) -> 149 | E54: =ROUND([3]ResourceLevelConfig!$H54*H$4,0) -> 149 | F54: 550
A55: 51 | B55: =ROUND([3]ResourceLevelConfig!$E55*H$4,0) -> 300 | C55: =ROUND([3]ResourceLevelConfig!$C55*H$4,0) -> 3000 | D55: =ROUND([3]ResourceLevelConfig!$G55*H$4,0) -> 150 | E55: =ROUND([3]ResourceLevelConfig!$H55*H$4,0) -> 150 | F55: 551
A56: 52 | B56: =ROUND([3]ResourceLevelConfig!$E56*H$4,0) -> 300 | C56: =ROUND([3]ResourceLevelConfig!$C56*H$4,0) -> 3020 | D56: =ROUND([3]ResourceLevelConfig!$G56*H$4,0) -> 151 | E56: =ROUND([3]ResourceLevelConfig!$H56*H$4,0) -> 151 | F56: 552
A57: 53 | B57: =ROUND([3]ResourceLevelConfig!$E57*H$4,0) -> 300 | C57: =ROUND([3]ResourceLevelConfig!$C57*H$4,0) -> 3040 | D57: =ROUND([3]ResourceLevelConfig!$G57*H$4,0) -> 152 | E57: =ROUND([3]ResourceLevelConfig!$H57*H$4,0) -> 152 | F57: 553
A58: 54 | B58: =ROUND([3]ResourceLevelConfig!$E58*H$4,0) -> 300 | C58: =ROUND([3]ResourceLevelConfig!$C58*H$4,0) -> 3060 | D58: =ROUND([3]ResourceLevelConfig!$G58*H$4,0) -> 153 | E58: =ROUND([3]ResourceLevelConfig!$H58*H$4,0) -> 153 | F58: 554
A59: 55 | B59: =ROUND([3]ResourceLevelConfig!$E59*H$4,0) -> 300 | C59: =ROUND([3]ResourceLevelConfig!$C59*H$4,0) -> 3080 | D59: =ROUND([3]ResourceLevelConfig!$G59*H$4,0) -> 154 | E59: =ROUND([3]ResourceLevelConfig!$H59*H$4,0) -> 154 | F59: 555
A60: 56 | B60: =ROUND([3]ResourceLevelConfig!$E60*H$4,0) -> 320 | C60: =ROUND([3]ResourceLevelConfig!$C60*H$4,0) -> 3100 | D60: =ROUND([3]ResourceLevelConfig!$G60*H$4,0) -> 155 | E60: =ROUND([3]ResourceLevelConfig!$H60*H$4,0) -> 155 | F60: 556
A61: 57 | B61: =ROUND([3]ResourceLevelConfig!$E61*H$4,0) -> 320 | C61: =ROUND([3]ResourceLevelConfig!$C61*H$4,0) -> 3120 | D61: =ROUND([3]ResourceLevelConfig!$G61*H$4,0) -> 156 | E61: =ROUND([3]ResourceLevelConfig!$H61*H$4,0) -> 156 | F61: 557
A62: 58 | B62: =ROUND([3]ResourceLevelConfig!$E62*H$4,0) -> 320 | C62: =ROUND([3]ResourceLevelConfig!$C62*H$4,0) -> 3140 | D62: =ROUND([3]ResourceLevelConfig!$G62*H$4,0) -> 157 | E62: =ROUND([3]ResourceLevelConfig!$H62*H$4,0) -> 157 | F62: 558
A63: 59 | B63: =ROUND([3]ResourceLevelConfig!$E63*H$4,0) -> 320 | C63: =ROUND([3]ResourceLevelConfig!$C63*H$4,0) -> 3160 | D63: =ROUND([3]ResourceLevelConfig!$G63*H$4,0) -> 158 | E63: =ROUND([3]ResourceLevelConfig!$H63*H$4,0) -> 158 | F63: 559
A64: 60 | B64: =ROUND([3]ResourceLevelConfig!$E64*H$4,0) -> 320 | C64: =ROUND([3]ResourceLevelConfig!$C64*H$4,0) -> 3180 | D64: =ROUND([3]ResourceLevelConfig!$G64*H$4,0) -> 159 | E64: =ROUND([3]ResourceLevelConfig!$H64*H$4,0) -> 159 | F64: 560
A65: 61 | B65: =ROUND([3]ResourceLevelConfig!$E65*H$4,0) -> 320 | C65: =ROUND([3]ResourceLevelConfig!$C65*H$4,0) -> 3200 | D65: =ROUND([3]ResourceLevelConfig!$G65*H$4,0) -> 160 | E65: =ROUND([3]ResourceLevelConfig!$H65*H$4,0) -> 160 | F65: 561
A66: 62 | B66: =ROUND([3]ResourceLevelConfig!$E66*H$4,0) -> 320 | C66: =ROUND([3]ResourceLevelConfig!$C66*H$4,0) -> 3220 | D66: =ROUND([3]ResourceLevelConfig!$G66*H$4,0) -> 161 | E66: =ROUND([3]ResourceLevelConfig!$H66*H$4,0) -> 161 | F66: 562
A67: 63 | B67: =ROUND([3]ResourceLevelConfig!$E67*H$4,0) -> 320 | C67: =ROUND([3]ResourceLevelConfig!$C67*H$4,0) -> 3240 | D67: =ROUND([3]ResourceLevelConfig!$G67*H$4,0) -> 162 | E67: =ROUND([3]ResourceLevelConfig!$H67*H$4,0) -> 162 | F67: 563
A68: 64 | B68: =ROUND([3]ResourceLevelConfig!$E68*H$4,0) -> 320 | C68: =ROUND([3]ResourceLevelConfig!$C68*H$4,0) -> 3260 | D68: =ROUND([3]ResourceLevelConfig!$G68*H$4,0) -> 163 | E68: =ROUND([3]ResourceLevelConfig!$H68*H$4,0) -> 163 | F68: 564
A69: 65 | B69: =ROUND([3]ResourceLevelConfig!$E69*H$4,0) -> 320 | C69: =ROUND([3]ResourceLevelConfig!$C69*H$4,0) -> 3280 | D69: =ROUND([3]ResourceLevelConfig!$G69*H$4,0) -> 164 | E69: =ROUND([3]ResourceLevelConfig!$H69*H$4,0) -> 164 | F69: 565
A70: 66 | B70: =ROUND([3]ResourceLevelConfig!$E70*H$4,0) -> 340 | C70: =ROUND([3]ResourceLevelConfig!$C70*H$4,0) -> 3300 | D70: =ROUND([3]ResourceLevelConfig!$G70*H$4,0) -> 165 | E70: =ROUND([3]ResourceLevelConfig!$H70*H$4,0) -> 165 | F70: 566
A71: 67 | B71: =ROUND([3]ResourceLevelConfig!$E71*H$4,0) -> 340 | C71: =ROUND([3]ResourceLevelConfig!$C71*H$4,0) -> 3320 | D71: =ROUND([3]ResourceLevelConfig!$G71*H$4,0) -> 166 | E71: =ROUND([3]ResourceLevelConfig!$H71*H$4,0) -> 166 | F71: 567
A72: 68 | B72: =ROUND([3]ResourceLevelConfig!$E72*H$4,0) -> 340 | C72: =ROUND([3]ResourceLevelConfig!$C72*H$4,0) -> 3340 | D72: =ROUND([3]ResourceLevelConfig!$G72*H$4,0) -> 167 | E72: =ROUND([3]ResourceLevelConfig!$H72*H$4,0) -> 167 | F72: 568
A73: 69 | B73: =ROUND([3]ResourceLevelConfig!$E73*H$4,0) -> 340 | C73: =ROUND([3]ResourceLevelConfig!$C73*H$4,0) -> 3360 | D73: =ROUND([3]ResourceLevelConfig!$G73*H$4,0) -> 168 | E73: =ROUND([3]ResourceLevelConfig!$H73*H$4,0) -> 168 | F73: 569
A74: 70 | B74: =ROUND([3]ResourceLevelConfig!$E74*H$4,0) -> 340 | C74: =ROUND([3]ResourceLevelConfig!$C74*H$4,0) -> 3380 | D74: =ROUND([3]ResourceLevelConfig!$G74*H$4,0) -> 169 | E74: =ROUND([3]ResourceLevelConfig!$H74*H$4,0) -> 169 | F74: 570
A75: 71 | B75: =ROUND([3]ResourceLevelConfig!$E75*H$4,0) -> 340 | C75: =ROUND([3]ResourceLevelConfig!$C75*H$4,0) -> 3400 | D75: =ROUND([3]ResourceLevelConfig!$G75*H$4,0) -> 170 | E75: =ROUND([3]ResourceLevelConfig!$H75*H$4,0) -> 170 | F75: 571
A76: 72 | B76: =ROUND([3]ResourceLevelConfig!$E76*H$4,0) -> 340 | C76: =ROUND([3]ResourceLevelConfig!$C76*H$4,0) -> 3420 | D76: =ROUND([3]ResourceLevelConfig!$G76*H$4,0) -> 171 | E76: =ROUND([3]ResourceLevelConfig!$H76*H$4,0) -> 171 | F76: 572
A77: 73 | B77: =ROUND([3]ResourceLevelConfig!$E77*H$4,0) -> 340 | C77: =ROUND([3]ResourceLevelConfig!$C77*H$4,0) -> 3440 | D77: =ROUND([3]ResourceLevelConfig!$G77*H$4,0) -> 172 | E77: =ROUND([3]ResourceLevelConfig!$H77*H$4,0) -> 172 | F77: 573
A78: 74 | B78: =ROUND([3]ResourceLevelConfig!$E78*H$4,0) -> 340 | C78: =ROUND([3]ResourceLevelConfig!$C78*H$4,0) -> 3460 | D78: =ROUND([3]ResourceLevelConfig!$G78*H$4,0) -> 173 | E78: =ROUND([3]ResourceLevelConfig!$H78*H$4,0) -> 173 | F78: 574
A79: 75 | B79: =ROUND([3]ResourceLevelConfig!$E79*H$4,0) -> 340 | C79: =ROUND([3]ResourceLevelConfig!$C79*H$4,0) -> 3480 | D79: =ROUND([3]ResourceLevelConfig!$G79*H$4,0) -> 174 | E79: =ROUND([3]ResourceLevelConfig!$H79*H$4,0) -> 174 | F79: 575
A80: 76 | B80: =ROUND([3]ResourceLevelConfig!$E80*H$4,0) -> 360 | C80: =ROUND([3]ResourceLevelConfig!$C80*H$4,0) -> 3500 | D80: =ROUND([3]ResourceLevelConfig!$G80*H$4,0) -> 175 | E80: =ROUND([3]ResourceLevelConfig!$H80*H$4,0) -> 175 | F80: 576
A81: 77 | B81: =ROUND([3]ResourceLevelConfig!$E81*H$4,0) -> 360 | C81: =ROUND([3]ResourceLevelConfig!$C81*H$4,0) -> 3520 | D81: =ROUND([3]ResourceLevelConfig!$G81*H$4,0) -> 176 | E81: =ROUND([3]ResourceLevelConfig!$H81*H$4,0) -> 176 | F81: 577
A82: 78 | B82: =ROUND([3]ResourceLevelConfig!$E82*H$4,0) -> 360 | C82: =ROUND([3]ResourceLevelConfig!$C82*H$4,0) -> 3540 | D82: =ROUND([3]ResourceLevelConfig!$G82*H$4,0) -> 177 | E82: =ROUND([3]ResourceLevelConfig!$H82*H$4,0) -> 177 | F82: 578
A83: 79 | B83: =ROUND([3]ResourceLevelConfig!$E83*H$4,0) -> 360 | C83: =ROUND([3]ResourceLevelConfig!$C83*H$4,0) -> 3560 | D83: =ROUND([3]ResourceLevelConfig!$G83*H$4,0) -> 178 | E83: =ROUND([3]ResourceLevelConfig!$H83*H$4,0) -> 178 | F83: 579
A84: 80 | B84: =ROUND([3]ResourceLevelConfig!$E84*H$4,0) -> 360 | C84: =ROUND([3]ResourceLevelConfig!$C84*H$4,0) -> 3580 | D84: =ROUND([3]ResourceLevelConfig!$G84*H$4,0) -> 179 | E84: =ROUND([3]ResourceLevelConfig!$H84*H$4,0) -> 179 | F84: 580
A85: 81 | B85: =ROUND([3]ResourceLevelConfig!$E85*H$4,0) -> 360 | C85: =ROUND([3]ResourceLevelConfig!$C85*H$4,0) -> 3600 | D85: =ROUND([3]ResourceLevelConfig!$G85*H$4,0) -> 180 | E85: =ROUND([3]ResourceLevelConfig!$H85*H$4,0) -> 180 | F85: 581
A86: 82 | B86: =ROUND([3]ResourceLevelConfig!$E86*H$4,0) -> 360 | C86: =ROUND([3]ResourceLevelConfig!$C86*H$4,0) -> 3620 | D86: =ROUND([3]ResourceLevelConfig!$G86*H$4,0) -> 181 | E86: =ROUND([3]ResourceLevelConfig!$H86*H$4,0) -> 181 | F86: 582
A87: 83 | B87: =ROUND([3]ResourceLevelConfig!$E87*H$4,0) -> 360 | C87: =ROUND([3]ResourceLevelConfig!$C87*H$4,0) -> 3640 | D87: =ROUND([3]ResourceLevelConfig!$G87*H$4,0) -> 182 | E87: =ROUND([3]ResourceLevelConfig!$H87*H$4,0) -> 182 | F87: 583
A88: 84 | B88: =ROUND([3]ResourceLevelConfig!$E88*H$4,0) -> 360 | C88: =ROUND([3]ResourceLevelConfig!$C88*H$4,0) -> 3660 | D88: =ROUND([3]ResourceLevelConfig!$G88*H$4,0) -> 183 | E88: =ROUND([3]ResourceLevelConfig!$H88*H$4,0) -> 183 | F88: 584
A89: 85 | B89: =ROUND([3]ResourceLevelConfig!$E89*H$4,0) -> 360 | C89: =ROUND([3]ResourceLevelConfig!$C89*H$4,0) -> 3680 | D89: =ROUND([3]ResourceLevelConfig!$G89*H$4,0) -> 184 | E89: =ROUND([3]ResourceLevelConfig!$H89*H$4,0) -> 184 | F89: 585
A90: 86 | B90: =ROUND([3]ResourceLevelConfig!$E90*H$4,0) -> 380 | C90: =ROUND([3]ResourceLevelConfig!$C90*H$4,0) -> 3700 | D90: =ROUND([3]ResourceLevelConfig!$G90*H$4,0) -> 185 | E90: =ROUND([3]ResourceLevelConfig!$H90*H$4,0) -> 185 | F90: 586
A91: 87 | B91: =ROUND([3]ResourceLevelConfig!$E91*H$4,0) -> 380 | C91: =ROUND([3]ResourceLevelConfig!$C91*H$4,0) -> 3720 | D91: =ROUND([3]ResourceLevelConfig!$G91*H$4,0) -> 186 | E91: =ROUND([3]ResourceLevelConfig!$H91*H$4,0) -> 186 | F91: 587
A92: 88 | B92: =ROUND([3]ResourceLevelConfig!$E92*H$4,0) -> 380 | C92: =ROUND([3]ResourceLevelConfig!$C92*H$4,0) -> 3740 | D92: =ROUND([3]ResourceLevelConfig!$G92*H$4,0) -> 187 | E92: =ROUND([3]ResourceLevelConfig!$H92*H$4,0) -> 187 | F92: 588
A93: 89 | B93: =ROUND([3]ResourceLevelConfig!$E93*H$4,0) -> 380 | C93: =ROUND([3]ResourceLevelConfig!$C93*H$4,0) -> 3760 | D93: =ROUND([3]ResourceLevelConfig!$G93*H$4,0) -> 188 | E93: =ROUND([3]ResourceLevelConfig!$H93*H$4,0) -> 188 | F93: 589
A94: 90 | B94: =ROUND([3]ResourceLevelConfig!$E94*H$4,0) -> 380 | C94: =ROUND([3]ResourceLevelConfig!$C94*H$4,0) -> 3780 | D94: =ROUND([3]ResourceLevelConfig!$G94*H$4,0) -> 189 | E94: =ROUND([3]ResourceLevelConfig!$H94*H$4,0) -> 189 | F94: 590
A95: 91 | B95: =ROUND([3]ResourceLevelConfig!$E95*H$4,0) -> 380 | C95: =ROUND([3]ResourceLevelConfig!$C95*H$4,0) -> 3800 | D95: =ROUND([3]ResourceLevelConfig!$G95*H$4,0) -> 190 | E95: =ROUND([3]ResourceLevelConfig!$H95*H$4,0) -> 190 | F95: 591
A96: 92 | B96: =ROUND([3]ResourceLevelConfig!$E96*H$4,0) -> 380 | C96: =ROUND([3]ResourceLevelConfig!$C96*H$4,0) -> 3820 | D96: =ROUND([3]ResourceLevelConfig!$G96*H$4,0) -> 191 | E96: =ROUND([3]ResourceLevelConfig!$H96*H$4,0) -> 191 | F96: 592
A97: 93 | B97: =ROUND([3]ResourceLevelConfig!$E97*H$4,0) -> 380 | C97: =ROUND([3]ResourceLevelConfig!$C97*H$4,0) -> 3840 | D97: =ROUND([3]ResourceLevelConfig!$G97*H$4,0) -> 192 | E97: =ROUND([3]ResourceLevelConfig!$H97*H$4,0) -> 192 | F97: 593
A98: 94 | B98: =ROUND([3]ResourceLevelConfig!$E98*H$4,0) -> 380 | C98: =ROUND([3]ResourceLevelConfig!$C98*H$4,0) -> 3860 | D98: =ROUND([3]ResourceLevelConfig!$G98*H$4,0) -> 193 | E98: =ROUND([3]ResourceLevelConfig!$H98*H$4,0) -> 193 | F98: 594
A99: 95 | B99: =ROUND([3]ResourceLevelConfig!$E99*H$4,0) -> 380 | C99: =ROUND([3]ResourceLevelConfig!$C99*H$4,0) -> 3880 | D99: =ROUND([3]ResourceLevelConfig!$G99*H$4,0) -> 194 | E99: =ROUND([3]ResourceLevelConfig!$H99*H$4,0) -> 194 | F99: 595
A100: 96 | B100: =ROUND([3]ResourceLevelConfig!$E100*H$4,0) -> 400 | C100: =ROUND([3]ResourceLevelConfig!$C100*H$4,0) -> 3900 | D100: =ROUND([3]ResourceLevelConfig!$G100*H$4,0) -> 195 | E100: =ROUND([3]ResourceLevelConfig!$H100*H$4,0) -> 195 | F100: 596
A101: 97 | B101: =ROUND([3]ResourceLevelConfig!$E101*H$4,0) -> 400 | C101: =ROUND([3]ResourceLevelConfig!$C101*H$4,0) -> 3920 | D101: =ROUND([3]ResourceLevelConfig!$G101*H$4,0) -> 196 | E101: =ROUND([3]ResourceLevelConfig!$H101*H$4,0) -> 196 | F101: 597
A102: 98 | B102: =ROUND([3]ResourceLevelConfig!$E102*H$4,0) -> 400 | C102: =ROUND([3]ResourceLevelConfig!$C102*H$4,0) -> 3940 | D102: =ROUND([3]ResourceLevelConfig!$G102*H$4,0) -> 197 | E102: =ROUND([3]ResourceLevelConfig!$H102*H$4,0) -> 197 | F102: 598
A103: 99 | B103: =ROUND([3]ResourceLevelConfig!$E103*H$4,0) -> 400 | C103: =ROUND([3]ResourceLevelConfig!$C103*H$4,0) -> 3960 | D103: =ROUND([3]ResourceLevelConfig!$G103*H$4,0) -> 198 | E103: =ROUND([3]ResourceLevelConfig!$H103*H$4,0) -> 198 | F103: 599
A104: 100 | B104: =ROUND([3]ResourceLevelConfig!$E104*H$4,0) -> 400 | C104: =ROUND([3]ResourceLevelConfig!$C104*H$4,0) -> 3980 | D104: =ROUND([3]ResourceLevelConfig!$G104*H$4,0) -> 199 | E104: =ROUND([3]ResourceLevelConfig!$H104*H$4,0) -> 199 | F104: 600
A105: 101 | B105: =ROUND([3]ResourceLevelConfig!$E105*H$4,0) -> 400 | C105: =ROUND([3]ResourceLevelConfig!$C105*H$4,0) -> 4000 | D105: =ROUND([3]ResourceLevelConfig!$G105*H$4,0) -> 200 | E105: =ROUND([3]ResourceLevelConfig!$H105*H$4,0) -> 200 | F105: 601
A106: 102 | B106: =ROUND([3]ResourceLevelConfig!$E106*H$4,0) -> 400 | C106: =ROUND([3]ResourceLevelConfig!$C106*H$4,0) -> 4020 | D106: =ROUND([3]ResourceLevelConfig!$G106*H$4,0) -> 201 | E106: =ROUND([3]ResourceLevelConfig!$H106*H$4,0) -> 201 | F106: 602
A107: 103 | B107: =ROUND([3]ResourceLevelConfig!$E107*H$4,0) -> 400 | C107: =ROUND([3]ResourceLevelConfig!$C107*H$4,0) -> 4040 | D107: =ROUND([3]ResourceLevelConfig!$G107*H$4,0) -> 202 | E107: =ROUND([3]ResourceLevelConfig!$H107*H$4,0) -> 202 | F107: 603
A108: 104 | B108: =ROUND([3]ResourceLevelConfig!$E108*H$4,0) -> 400 | C108: =ROUND([3]ResourceLevelConfig!$C108*H$4,0) -> 4060 | D108: =ROUND([3]ResourceLevelConfig!$G108*H$4,0) -> 203 | E108: =ROUND([3]ResourceLevelConfig!$H108*H$4,0) -> 203 | F108: 604
A109: 105 | B109: =ROUND([3]ResourceLevelConfig!$E109*H$4,0) -> 400 | C109: =ROUND([3]ResourceLevelConfig!$C109*H$4,0) -> 4080 | D109: =ROUND([3]ResourceLevelConfig!$G109*H$4,0) -> 204 | E109: =ROUND([3]ResourceLevelConfig!$H109*H$4,0) -> 204 | F109: 605
A110: 106 | B110: =ROUND([3]ResourceLevelConfig!$E110*H$4,0) -> 420 | C110: =ROUND([3]ResourceLevelConfig!$C110*H$4,0) -> 4102 | D110: =ROUND([3]ResourceLevelConfig!$G110*H$4,0) -> 205 | E110: =ROUND([3]ResourceLevelConfig!$H110*H$4,0) -> 205 | F110: 606
A111: 107 | B111: =ROUND([3]ResourceLevelConfig!$E111*H$4,0) -> 420 | C111: =ROUND([3]ResourceLevelConfig!$C111*H$4,0) -> 4122 | D111: =ROUND([3]ResourceLevelConfig!$G111*H$4,0) -> 206 | E111: =ROUND([3]ResourceLevelConfig!$H111*H$4,0) -> 206 | F111: 607
A112: 108 | B112: =ROUND([3]ResourceLevelConfig!$E112*H$4,0) -> 420 | C112: =ROUND([3]ResourceLevelConfig!$C112*H$4,0) -> 4142 | D112: =ROUND([3]ResourceLevelConfig!$G112*H$4,0) -> 207 | E112: =ROUND([3]ResourceLevelConfig!$H112*H$4,0) -> 207 | F112: 608
A113: 109 | B113: =ROUND([3]ResourceLevelConfig!$E113*H$4,0) -> 420 | C113: =ROUND([3]ResourceLevelConfig!$C113*H$4,0) -> 4162 | D113: =ROUND([3]ResourceLevelConfig!$G113*H$4,0) -> 208 | E113: =ROUND([3]ResourceLevelConfig!$H113*H$4,0) -> 208 | F113: 609
A114: 110 | B114: =ROUND([3]ResourceLevelConfig!$E114*H$4,0) -> 420 | C114: =ROUND([3]ResourceLevelConfig!$C114*H$4,0) -> 4184 | D114: =ROUND([3]ResourceLevelConfig!$G114*H$4,0) -> 209 | E114: =ROUND([3]ResourceLevelConfig!$H114*H$4,0) -> 209 | F114: 610
A115: 111 | B115: =ROUND([3]ResourceLevelConfig!$E115*H$4,0) -> 420 | C115: =ROUND([3]ResourceLevelConfig!$C115*H$4,0) -> 4204 | D115: =ROUND([3]ResourceLevelConfig!$G115*H$4,0) -> 210 | E115: =ROUND([3]ResourceLevelConfig!$H115*H$4,0) -> 210 | F115: 611
A116: 112 | B116: =ROUND([3]ResourceLevelConfig!$E116*H$4,0) -> 420 | C116: =ROUND([3]ResourceLevelConfig!$C116*H$4,0) -> 4226 | D116: =ROUND([3]ResourceLevelConfig!$G116*H$4,0) -> 211 | E116: =ROUND([3]ResourceLevelConfig!$H116*H$4,0) -> 211 | F116: 612
A117: 113 | B117: =ROUND([3]ResourceLevelConfig!$E117*H$4,0) -> 420 | C117: =ROUND([3]ResourceLevelConfig!$C117*H$4,0) -> 4246 | D117: =ROUND([3]ResourceLevelConfig!$G117*H$4,0) -> 212 | E117: =ROUND([3]ResourceLevelConfig!$H117*H$4,0) -> 212 | F117: 613
A118: 114 | B118: =ROUND([3]ResourceLevelConfig!$E118*H$4,0) -> 420 | C118: =ROUND([3]ResourceLevelConfig!$C118*H$4,0) -> 4268 | D118: =ROUND([3]ResourceLevelConfig!$G118*H$4,0) -> 213 | E118: =ROUND([3]ResourceLevelConfig!$H118*H$4,0) -> 213 | F118: 614
A119: 115 | B119: =ROUND([3]ResourceLevelConfig!$E119*H$4,0) -> 420 | C119: =ROUND([3]ResourceLevelConfig!$C119*H$4,0) -> 4290 | D119: =ROUND([3]ResourceLevelConfig!$G119*H$4,0) -> 214 | E119: =ROUND([3]ResourceLevelConfig!$H119*H$4,0) -> 214 | F119: 615
A120: 116 | B120: =ROUND([3]ResourceLevelConfig!$E120*H$4,0) -> 440 | C120: =ROUND([3]ResourceLevelConfig!$C120*H$4,0) -> 4310 | D120: =ROUND([3]ResourceLevelConfig!$G120*H$4,0) -> 215 | E120: =ROUND([3]ResourceLevelConfig!$H120*H$4,0) -> 215 | F120: 616
A121: 117 | B121: =ROUND([3]ResourceLevelConfig!$E121*H$4,0) -> 440 | C121: =ROUND([3]ResourceLevelConfig!$C121*H$4,0) -> 4332 | D121: =ROUND([3]ResourceLevelConfig!$G121*H$4,0) -> 216 | E121: =ROUND([3]ResourceLevelConfig!$H121*H$4,0) -> 216 | F121: 617
A122: 118 | B122: =ROUND([3]ResourceLevelConfig!$E122*H$4,0) -> 440 | C122: =ROUND([3]ResourceLevelConfig!$C122*H$4,0) -> 4354 | D122: =ROUND([3]ResourceLevelConfig!$G122*H$4,0) -> 217 | E122: =ROUND([3]ResourceLevelConfig!$H122*H$4,0) -> 217 | F122: 618
A123: 119 | B123: =ROUND([3]ResourceLevelConfig!$E123*H$4,0) -> 440 | C123: =ROUND([3]ResourceLevelConfig!$C123*H$4,0) -> 4376 | D123: =ROUND([3]ResourceLevelConfig!$G123*H$4,0) -> 218 | E123: =ROUND([3]ResourceLevelConfig!$H123*H$4,0) -> 218 | F123: 619
A124: 120 | B124: =ROUND([3]ResourceLevelConfig!$E124*H$4,0) -> 440 | C124: =ROUND([3]ResourceLevelConfig!$C124*H$4,0) -> 4398 | D124: =ROUND([3]ResourceLevelConfig!$G124*H$4,0) -> 219 | E124: =ROUND([3]ResourceLevelConfig!$H124*H$4,0) -> 219 | F124: 620
A125: 121 | B125: =ROUND([3]ResourceLevelConfig!$E125*H$4,0) -> 440 | C125: =ROUND([3]ResourceLevelConfig!$C125*H$4,0) -> 4420 | D125: =ROUND([3]ResourceLevelConfig!$G125*H$4,0) -> 220 | E125: =ROUND([3]ResourceLevelConfig!$H125*H$4,0) -> 220 | F125: 621
A126: 122 | B126: =ROUND([3]ResourceLevelConfig!$E126*H$4,0) -> 440 | C126: =ROUND([3]ResourceLevelConfig!$C126*H$4,0) -> 4442 | D126: =ROUND([3]ResourceLevelConfig!$G126*H$4,0) -> 221 | E126: =ROUND([3]ResourceLevelConfig!$H126*H$4,0) -> 221 | F126: 622
A127: 123 | B127: =ROUND([3]ResourceLevelConfig!$E127*H$4,0) -> 440 | C127: =ROUND([3]ResourceLevelConfig!$C127*H$4,0) -> 4464 | D127: =ROUND([3]ResourceLevelConfig!$G127*H$4,0) -> 222 | E127: =ROUND([3]ResourceLevelConfig!$H127*H$4,0) -> 222 | F127: 623
A128: 124 | B128: =ROUND([3]ResourceLevelConfig!$E128*H$4,0) -> 440 | C128: =ROUND([3]ResourceLevelConfig!$C128*H$4,0) -> 4486 | D128: =ROUND([3]ResourceLevelConfig!$G128*H$4,0) -> 223 | E128: =ROUND([3]ResourceLevelConfig!$H128*H$4,0) -> 223 | F128: 624
A129: 125 | B129: =ROUND([3]ResourceLevelConfig!$E129*H$4,0) -> 460 | C129: =ROUND([3]ResourceLevelConfig!$C129*H$4,0) -> 4508 | D129: =ROUND([3]ResourceLevelConfig!$G129*H$4,0) -> 224 | E129: =ROUND([3]ResourceLevelConfig!$H129*H$4,0) -> 224 | F129: 625
A130: 126 | B130: =ROUND([3]ResourceLevelConfig!$E130*H$4,0) -> 460 | C130: =ROUND([3]ResourceLevelConfig!$C130*H$4,0) -> 4532 | D130: =ROUND([3]ResourceLevelConfig!$G130*H$4,0) -> 225 | E130: =ROUND([3]ResourceLevelConfig!$H130*H$4,0) -> 225 | F130: 626
A131: 127 | B131: =ROUND([3]ResourceLevelConfig!$E131*H$4,0) -> 460 | C131: =ROUND([3]ResourceLevelConfig!$C131*H$4,0) -> 4554 | D131: =ROUND([3]ResourceLevelConfig!$G131*H$4,0) -> 226 | E131: =ROUND([3]ResourceLevelConfig!$H131*H$4,0) -> 226 | F131: 627
A132: 128 | B132: =ROUND([3]ResourceLevelConfig!$E132*H$4,0) -> 460 | C132: =ROUND([3]ResourceLevelConfig!$C132*H$4,0) -> 4576 | D132: =ROUND([3]ResourceLevelConfig!$G132*H$4,0) -> 227 | E132: =ROUND([3]ResourceLevelConfig!$H132*H$4,0) -> 227 | F132: 628
A133: 129 | B133: =ROUND([3]ResourceLevelConfig!$E133*H$4,0) -> 460 | C133: =ROUND([3]ResourceLevelConfig!$C133*H$4,0) -> 4600 | D133: =ROUND([3]ResourceLevelConfig!$G133*H$4,0) -> 228 | E133: =ROUND([3]ResourceLevelConfig!$H133*H$4,0) -> 228 | F133: 629
A134: 130 | B134: =ROUND([3]ResourceLevelConfig!$E134*H$4,0) -> 460 | C134: =ROUND([3]ResourceLevelConfig!$C134*H$4,0) -> 4622 | D134: =ROUND([3]ResourceLevelConfig!$G134*H$4,0) -> 229 | E134: =ROUND([3]ResourceLevelConfig!$H134*H$4,0) -> 229 | F134: 630
A135: 131 | B135: =ROUND([3]ResourceLevelConfig!$E135*H$4,0) -> 460 | C135: =ROUND([3]ResourceLevelConfig!$C135*H$4,0) -> 4646 | D135: =ROUND([3]ResourceLevelConfig!$G135*H$4,0) -> 230 | E135: =ROUND([3]ResourceLevelConfig!$H135*H$4,0) -> 230 | F135: 631
A136: 132 | B136: =ROUND([3]ResourceLevelConfig!$E136*H$4,0) -> 460 | C136: =ROUND([3]ResourceLevelConfig!$C136*H$4,0) -> 4668 | D136: =ROUND([3]ResourceLevelConfig!$G136*H$4,0) -> 231 | E136: =ROUND([3]ResourceLevelConfig!$H136*H$4,0) -> 231 | F136: 632
A137: 133 | B137: =ROUND([3]ResourceLevelConfig!$E137*H$4,0) -> 460 | C137: =ROUND([3]ResourceLevelConfig!$C137*H$4,0) -> 4692 | D137: =ROUND([3]ResourceLevelConfig!$G137*H$4,0) -> 232 | E137: =ROUND([3]ResourceLevelConfig!$H137*H$4,0) -> 232 | F137: 633
A138: 134 | B138: =ROUND([3]ResourceLevelConfig!$E138*H$4,0) -> 480 | C138: =ROUND([3]ResourceLevelConfig!$C138*H$4,0) -> 4716 | D138: =ROUND([3]ResourceLevelConfig!$G138*H$4,0) -> 233 | E138: =ROUND([3]ResourceLevelConfig!$H138*H$4,0) -> 233 | F138: 634
A139: 135 | B139: =ROUND([3]ResourceLevelConfig!$E139*H$4,0) -> 480 | C139: =ROUND([3]ResourceLevelConfig!$C139*H$4,0) -> 4740 | D139: =ROUND([3]ResourceLevelConfig!$G139*H$4,0) -> 234 | E139: =ROUND([3]ResourceLevelConfig!$H139*H$4,0) -> 234 | F139: 635
A140: 136 | B140: =ROUND([3]ResourceLevelConfig!$E140*H$4,0) -> 480 | C140: =ROUND([3]ResourceLevelConfig!$C140*H$4,0) -> 4762 | D140: =ROUND([3]ResourceLevelConfig!$G140*H$4,0) -> 235 | E140: =ROUND([3]ResourceLevelConfig!$H140*H$4,0) -> 235 | F140: 636
A141: 137 | B141: =ROUND([3]ResourceLevelConfig!$E141*H$4,0) -> 480 | C141: =ROUND([3]ResourceLevelConfig!$C141*H$4,0) -> 4786 | D141: =ROUND([3]ResourceLevelConfig!$G141*H$4,0) -> 236 | E141: =ROUND([3]ResourceLevelConfig!$H141*H$4,0) -> 236 | F141: 637
A142: 138 | B142: =ROUND([3]ResourceLevelConfig!$E142*H$4,0) -> 480 | C142: =ROUND([3]ResourceLevelConfig!$C142*H$4,0) -> 4810 | D142: =ROUND([3]ResourceLevelConfig!$G142*H$4,0) -> 237 | E142: =ROUND([3]ResourceLevelConfig!$H142*H$4,0) -> 237 | F142: 638
A143: 139 | B143: =ROUND([3]ResourceLevelConfig!$E143*H$4,0) -> 480 | C143: =ROUND([3]ResourceLevelConfig!$C143*H$4,0) -> 4834 | D143: =ROUND([3]ResourceLevelConfig!$G143*H$4,0) -> 238 | E143: =ROUND([3]ResourceLevelConfig!$H143*H$4,0) -> 238 | F143: 639
A144: 140 | B144: =ROUND([3]ResourceLevelConfig!$E144*H$4,0) -> 480 | C144: =ROUND([3]ResourceLevelConfig!$C144*H$4,0) -> 4858 | D144: =ROUND([3]ResourceLevelConfig!$G144*H$4,0) -> 239 | E144: =ROUND([3]ResourceLevelConfig!$H144*H$4,0) -> 239 | F144: 640
A145: 141 | B145: =ROUND([3]ResourceLevelConfig!$E145*H$4,0) -> 480 | C145: =ROUND([3]ResourceLevelConfig!$C145*H$4,0) -> 4884 | D145: =ROUND([3]ResourceLevelConfig!$G145*H$4,0) -> 240 | E145: =ROUND([3]ResourceLevelConfig!$H145*H$4,0) -> 240 | F145: 641
A146: 142 | B146: =ROUND([3]ResourceLevelConfig!$E146*H$4,0) -> 500 | C146: =ROUND([3]ResourceLevelConfig!$C146*H$4,0) -> 4908 | D146: =ROUND([3]ResourceLevelConfig!$G146*H$4,0) -> 241 | E146: =ROUND([3]ResourceLevelConfig!$H146*H$4,0) -> 241 | F146: 642
A147: 143 | B147: =ROUND([3]ResourceLevelConfig!$E147*H$4,0) -> 500 | C147: =ROUND([3]ResourceLevelConfig!$C147*H$4,0) -> 4932 | D147: =ROUND([3]ResourceLevelConfig!$G147*H$4,0) -> 242 | E147: =ROUND([3]ResourceLevelConfig!$H147*H$4,0) -> 242 | F147: 643
A148: 144 | B148: =ROUND([3]ResourceLevelConfig!$E148*H$4,0) -> 500 | C148: =ROUND([3]ResourceLevelConfig!$C148*H$4,0) -> 4956 | D148: =ROUND([3]ResourceLevelConfig!$G148*H$4,0) -> 243 | E148: =ROUND([3]ResourceLevelConfig!$H148*H$4,0) -> 243 | F148: 644
A149: 145 | B149: =ROUND([3]ResourceLevelConfig!$E149*H$4,0) -> 500 | C149: =ROUND([3]ResourceLevelConfig!$C149*H$4,0) -> 4982 | D149: =ROUND([3]ResourceLevelConfig!$G149*H$4,0) -> 244 | E149: =ROUND([3]ResourceLevelConfig!$H149*H$4,0) -> 244 | F149: 645
A150: 146 | B150: =ROUND([3]ResourceLevelConfig!$E150*H$4,0) -> 500 | C150: =ROUND([3]ResourceLevelConfig!$C150*H$4,0) -> 5006 | D150: =ROUND([3]ResourceLevelConfig!$G150*H$4,0) -> 245 | E150: =ROUND([3]ResourceLevelConfig!$H150*H$4,0) -> 245 | F150: 646
A151: 147 | B151: =ROUND([3]ResourceLevelConfig!$E151*H$4,0) -> 500 | C151: =ROUND([3]ResourceLevelConfig!$C151*H$4,0) -> 5032 | D151: =ROUND([3]ResourceLevelConfig!$G151*H$4,0) -> 246 | E151: =ROUND([3]ResourceLevelConfig!$H151*H$4,0) -> 246 | F151: 647
A152: 148 | B152: =ROUND([3]ResourceLevelConfig!$E152*H$4,0) -> 500 | C152: =ROUND([3]ResourceLevelConfig!$C152*H$4,0) -> 5056 | D152: =ROUND([3]ResourceLevelConfig!$G152*H$4,0) -> 247 | E152: =ROUND([3]ResourceLevelConfig!$H152*H$4,0) -> 247 | F152: 648
A153: 149 | B153: =ROUND([3]ResourceLevelConfig!$E153*H$4,0) -> 500 | C153: =ROUND([3]ResourceLevelConfig!$C153*H$4,0) -> 5082 | D153: =ROUND([3]ResourceLevelConfig!$G153*H$4,0) -> 248 | E153: =ROUND([3]ResourceLevelConfig!$H153*H$4,0) -> 248 | F153: 649
A154: 150 | B154: =ROUND([3]ResourceLevelConfig!$E154*H$4,0) -> 520 | C154: =ROUND([3]ResourceLevelConfig!$C154*H$4,0) -> 5108 | D154: =ROUND([3]ResourceLevelConfig!$G154*H$4,0) -> 249 | E154: =ROUND([3]ResourceLevelConfig!$H154*H$4,0) -> 249 | F154: 650
A155: 151 | B155: =ROUND([3]ResourceLevelConfig!$E155*H$4,0) -> 520 | C155: =ROUND([3]ResourceLevelConfig!$C155*H$4,0) -> 5132 | D155: =ROUND([3]ResourceLevelConfig!$G155*H$4,0) -> 250 | E155: =ROUND([3]ResourceLevelConfig!$H155*H$4,0) -> 250 | F155: 651
A156: 152 | B156: =ROUND([3]ResourceLevelConfig!$E156*H$4,0) -> 520 | C156: =ROUND([3]ResourceLevelConfig!$C156*H$4,0) -> 5158 | D156: =ROUND([3]ResourceLevelConfig!$G156*H$4,0) -> 251 | E156: =ROUND([3]ResourceLevelConfig!$H156*H$4,0) -> 251 | F156: 652
A157: 153 | B157: =ROUND([3]ResourceLevelConfig!$E157*H$4,0) -> 520 | C157: =ROUND([3]ResourceLevelConfig!$C157*H$4,0) -> 5184 | D157: =ROUND([3]ResourceLevelConfig!$G157*H$4,0) -> 252 | E157: =ROUND([3]ResourceLevelConfig!$H157*H$4,0) -> 252 | F157: 653
A158: 154 | B158: =ROUND([3]ResourceLevelConfig!$E158*H$4,0) -> 520 | C158: =ROUND([3]ResourceLevelConfig!$C158*H$4,0) -> 5210 | D158: =ROUND([3]ResourceLevelConfig!$G158*H$4,0) -> 253 | E158: =ROUND([3]ResourceLevelConfig!$H158*H$4,0) -> 253 | F158: 654
A159: 155 | B159: =ROUND([3]ResourceLevelConfig!$E159*H$4,0) -> 520 | C159: =ROUND([3]ResourceLevelConfig!$C159*H$4,0) -> 5236 | D159: =ROUND([3]ResourceLevelConfig!$G159*H$4,0) -> 254 | E159: =ROUND([3]ResourceLevelConfig!$H159*H$4,0) -> 254 | F159: 655
A160: 156 | B160: =ROUND([3]ResourceLevelConfig!$E160*H$4,0) -> 520 | C160: =ROUND([3]ResourceLevelConfig!$C160*H$4,0) -> 5262 | D160: =ROUND([3]ResourceLevelConfig!$G160*H$4,0) -> 255 | E160: =ROUND([3]ResourceLevelConfig!$H160*H$4,0) -> 255 | F160: 656
A161: 157 | B161: =ROUND([3]ResourceLevelConfig!$E161*H$4,0) -> 520 | C161: =ROUND([3]ResourceLevelConfig!$C161*H$4,0) -> 5288 | D161: =ROUND([3]ResourceLevelConfig!$G161*H$4,0) -> 256 | E161: =ROUND([3]ResourceLevelConfig!$H161*H$4,0) -> 256 | F161: 657
A162: 158 | B162: =ROUND([3]ResourceLevelConfig!$E162*H$4,0) -> 540 | C162: =ROUND([3]ResourceLevelConfig!$C162*H$4,0) -> 5316 | D162: =ROUND([3]ResourceLevelConfig!$G162*H$4,0) -> 257 | E162: =ROUND([3]ResourceLevelConfig!$H162*H$4,0) -> 257 | F162: 658
A163: 159 | B163: =ROUND([3]ResourceLevelConfig!$E163*H$4,0) -> 540 | C163: =ROUND([3]ResourceLevelConfig!$C163*H$4,0) -> 5342 | D163: =ROUND([3]ResourceLevelConfig!$G163*H$4,0) -> 258 | E163: =ROUND([3]ResourceLevelConfig!$H163*H$4,0) -> 258 | F163: 659
A164: 160 | B164: =ROUND([3]ResourceLevelConfig!$E164*H$4,0) -> 540 | C164: =ROUND([3]ResourceLevelConfig!$C164*H$4,0) -> 5368 | D164: =ROUND([3]ResourceLevelConfig!$G164*H$4,0) -> 259 | E164: =ROUND([3]ResourceLevelConfig!$H164*H$4,0) -> 259 | F164: 660
A165: 161 | B165: =ROUND([3]ResourceLevelConfig!$E165*H$4,0) -> 540 | C165: =ROUND([3]ResourceLevelConfig!$C165*H$4,0) -> 5396 | D165: =ROUND([3]ResourceLevelConfig!$G165*H$4,0) -> 260 | E165: =ROUND([3]ResourceLevelConfig!$H165*H$4,0) -> 260 | F165: 661
A166: 162 | B166: =ROUND([3]ResourceLevelConfig!$E166*H$4,0) -> 540 | C166: =ROUND([3]ResourceLevelConfig!$C166*H$4,0) -> 5422 | D166: =ROUND([3]ResourceLevelConfig!$G166*H$4,0) -> 261 | E166: =ROUND([3]ResourceLevelConfig!$H166*H$4,0) -> 261 | F166: 662
A167: 163 | B167: =ROUND([3]ResourceLevelConfig!$E167*H$4,0) -> 540 | C167: =ROUND([3]ResourceLevelConfig!$C167*H$4,0) -> 5450 | D167: =ROUND([3]ResourceLevelConfig!$G167*H$4,0) -> 262 | E167: =ROUND([3]ResourceLevelConfig!$H167*H$4,0) -> 262 | F167: 663
A168: 164 | B168: =ROUND([3]ResourceLevelConfig!$E168*H$4,0) -> 540 | C168: =ROUND([3]ResourceLevelConfig!$C168*H$4,0) -> 5476 | D168: =ROUND([3]ResourceLevelConfig!$G168*H$4,0) -> 263 | E168: =ROUND([3]ResourceLevelConfig!$H168*H$4,0) -> 263 | F168: 664
A169: 165 | B169: =ROUND([3]ResourceLevelConfig!$E169*H$4,0) -> 560 | C169: =ROUND([3]ResourceLevelConfig!$C169*H$4,0) -> 5504 | D169: =ROUND([3]ResourceLevelConfig!$G169*H$4,0) -> 264 | E169: =ROUND([3]ResourceLevelConfig!$H169*H$4,0) -> 264 | F169: 665
A170: 166 | B170: =ROUND([3]ResourceLevelConfig!$E170*H$4,0) -> 560 | C170: =ROUND([3]ResourceLevelConfig!$C170*H$4,0) -> 5532 | D170: =ROUND([3]ResourceLevelConfig!$G170*H$4,0) -> 265 | E170: =ROUND([3]ResourceLevelConfig!$H170*H$4,0) -> 265 | F170: 666
A171: 167 | B171: =ROUND([3]ResourceLevelConfig!$E171*H$4,0) -> 560 | C171: =ROUND([3]ResourceLevelConfig!$C171*H$4,0) -> 5560 | D171: =ROUND([3]ResourceLevelConfig!$G171*H$4,0) -> 266 | E171: =ROUND([3]ResourceLevelConfig!$H171*H$4,0) -> 266 | F171: 667
A172: 168 | B172: =ROUND([3]ResourceLevelConfig!$E172*H$4,0) -> 560 | C172: =ROUND([3]ResourceLevelConfig!$C172*H$4,0) -> 5588 | D172: =ROUND([3]ResourceLevelConfig!$G172*H$4,0) -> 267 | E172: =ROUND([3]ResourceLevelConfig!$H172*H$4,0) -> 267 | F172: 668
A173: 169 | B173: =ROUND([3]ResourceLevelConfig!$E173*H$4,0) -> 560 | C173: =ROUND([3]ResourceLevelConfig!$C173*H$4,0) -> 5616 | D173: =ROUND([3]ResourceLevelConfig!$G173*H$4,0) -> 268 | E173: =ROUND([3]ResourceLevelConfig!$H173*H$4,0) -> 268 | F173: 669
A174: 170 | B174: =ROUND([3]ResourceLevelConfig!$E174*H$4,0) -> 560 | C174: =ROUND([3]ResourceLevelConfig!$C174*H$4,0) -> 5644 | D174: =ROUND([3]ResourceLevelConfig!$G174*H$4,0) -> 269 | E174: =ROUND([3]ResourceLevelConfig!$H174*H$4,0) -> 269 | F174: 670
A175: 171 | B175: =ROUND([3]ResourceLevelConfig!$E175*H$4,0) -> 560 | C175: =ROUND([3]ResourceLevelConfig!$C175*H$4,0) -> 5672 | D175: =ROUND([3]ResourceLevelConfig!$G175*H$4,0) -> 270 | E175: =ROUND([3]ResourceLevelConfig!$H175*H$4,0) -> 270 | F175: 671
A176: 172 | B176: =ROUND([3]ResourceLevelConfig!$E176*H$4,0) -> 560 | C176: =ROUND([3]ResourceLevelConfig!$C176*H$4,0) -> 5700 | D176: =ROUND([3]ResourceLevelConfig!$G176*H$4,0) -> 271 | E176: =ROUND([3]ResourceLevelConfig!$H176*H$4,0) -> 271 | F176: 672
A177: 173 | B177: =ROUND([3]ResourceLevelConfig!$E177*H$4,0) -> 580 | C177: =ROUND([3]ResourceLevelConfig!$C177*H$4,0) -> 5728 | D177: =ROUND([3]ResourceLevelConfig!$G177*H$4,0) -> 272 | E177: =ROUND([3]ResourceLevelConfig!$H177*H$4,0) -> 272 | F177: 673
A178: 174 | B178: =ROUND([3]ResourceLevelConfig!$E178*H$4,0) -> 580 | C178: =ROUND([3]ResourceLevelConfig!$C178*H$4,0) -> 5756 | D178: =ROUND([3]ResourceLevelConfig!$G178*H$4,0) -> 273 | E178: =ROUND([3]ResourceLevelConfig!$H178*H$4,0) -> 273 | F178: 674
A179: 175 | B179: =ROUND([3]ResourceLevelConfig!$E179*H$4,0) -> 580 | C179: =ROUND([3]ResourceLevelConfig!$C179*H$4,0) -> 5786 | D179: =ROUND([3]ResourceLevelConfig!$G179*H$4,0) -> 274 | E179: =ROUND([3]ResourceLevelConfig!$H179*H$4,0) -> 274 | F179: 675
A180: 176 | B180: =ROUND([3]ResourceLevelConfig!$E180*H$4,0) -> 580 | C180: =ROUND([3]ResourceLevelConfig!$C180*H$4,0) -> 5814 | D180: =ROUND([3]ResourceLevelConfig!$G180*H$4,0) -> 275 | E180: =ROUND([3]ResourceLevelConfig!$H180*H$4,0) -> 275 | F180: 676
A181: 177 | B181: =ROUND([3]ResourceLevelConfig!$E181*H$4,0) -> 580 | C181: =ROUND([3]ResourceLevelConfig!$C181*H$4,0) -> 5844 | D181: =ROUND([3]ResourceLevelConfig!$G181*H$4,0) -> 276 | E181: =ROUND([3]ResourceLevelConfig!$H181*H$4,0) -> 276 | F181: 677
A182: 178 | B182: =ROUND([3]ResourceLevelConfig!$E182*H$4,0) -> 580 | C182: =ROUND([3]ResourceLevelConfig!$C182*H$4,0) -> 5872 | D182: =ROUND([3]ResourceLevelConfig!$G182*H$4,0) -> 277 | E182: =ROUND([3]ResourceLevelConfig!$H182*H$4,0) -> 277 | F182: 678
A183: 179 | B183: =ROUND([3]ResourceLevelConfig!$E183*H$4,0) -> 600 | C183: =ROUND([3]ResourceLevelConfig!$C183*H$4,0) -> 5902 | D183: =ROUND([3]ResourceLevelConfig!$G183*H$4,0) -> 278 | E183: =ROUND([3]ResourceLevelConfig!$H183*H$4,0) -> 278 | F183: 679
A184: 180 | B184: =ROUND([3]ResourceLevelConfig!$E184*H$4,0) -> 600 | C184: =ROUND([3]ResourceLevelConfig!$C184*H$4,0) -> 5932 | D184: =ROUND([3]ResourceLevelConfig!$G184*H$4,0) -> 279 | E184: =ROUND([3]ResourceLevelConfig!$H184*H$4,0) -> 279 | F184: 680
A185: 181 | B185: =ROUND([3]ResourceLevelConfig!$E185*H$4,0) -> 600 | C185: =ROUND([3]ResourceLevelConfig!$C185*H$4,0) -> 5962 | D185: =ROUND([3]ResourceLevelConfig!$G185*H$4,0) -> 280 | E185: =ROUND([3]ResourceLevelConfig!$H185*H$4,0) -> 280 | F185: 681
A186: 182 | B186: =ROUND([3]ResourceLevelConfig!$E186*H$4,0) -> 600 | C186: =ROUND([3]ResourceLevelConfig!$C186*H$4,0) -> 5992 | D186: =ROUND([3]ResourceLevelConfig!$G186*H$4,0) -> 281 | E186: =ROUND([3]ResourceLevelConfig!$H186*H$4,0) -> 281 | F186: 682
A187: 183 | B187: =ROUND([3]ResourceLevelConfig!$E187*H$4,0) -> 600 | C187: =ROUND([3]ResourceLevelConfig!$C187*H$4,0) -> 6022 | D187: =ROUND([3]ResourceLevelConfig!$G187*H$4,0) -> 282 | E187: =ROUND([3]ResourceLevelConfig!$H187*H$4,0) -> 282 | F187: 683
A188: 184 | B188: =ROUND([3]ResourceLevelConfig!$E188*H$4,0) -> 600 | C188: =ROUND([3]ResourceLevelConfig!$C188*H$4,0) -> 6052 | D188: =ROUND([3]ResourceLevelConfig!$G188*H$4,0) -> 283 | E188: =ROUND([3]ResourceLevelConfig!$H188*H$4,0) -> 283 | F188: 684
A189: 185 | B189: =ROUND([3]ResourceLevelConfig!$E189*H$4,0) -> 600 | C189: =ROUND([3]ResourceLevelConfig!$C189*H$4,0) -> 6082 | D189: =ROUND([3]ResourceLevelConfig!$G189*H$4,0) -> 284 | E189: =ROUND([3]ResourceLevelConfig!$H189*H$4,0) -> 284 | F189: 685
A190: 186 | B190: =ROUND([3]ResourceLevelConfig!$E190*H$4,0) -> 620 | C190: =ROUND([3]ResourceLevelConfig!$C190*H$4,0) -> 6112 | D190: =ROUND([3]ResourceLevelConfig!$G190*H$4,0) -> 285 | E190: =ROUND([3]ResourceLevelConfig!$H190*H$4,0) -> 285 | F190: 686
A191: 187 | B191: =ROUND([3]ResourceLevelConfig!$E191*H$4,0) -> 620 | C191: =ROUND([3]ResourceLevelConfig!$C191*H$4,0) -> 6142 | D191: =ROUND([3]ResourceLevelConfig!$G191*H$4,0) -> 286 | E191: =ROUND([3]ResourceLevelConfig!$H191*H$4,0) -> 286 | F191: 687
A192: 188 | B192: =ROUND([3]ResourceLevelConfig!$E192*H$4,0) -> 620 | C192: =ROUND([3]ResourceLevelConfig!$C192*H$4,0) -> 6174 | D192: =ROUND([3]ResourceLevelConfig!$G192*H$4,0) -> 287 | E192: =ROUND([3]ResourceLevelConfig!$H192*H$4,0) -> 287 | F192: 688
A193: 189 | B193: =ROUND([3]ResourceLevelConfig!$E193*H$4,0) -> 620 | C193: =ROUND([3]ResourceLevelConfig!$C193*H$4,0) -> 6204 | D193: =ROUND([3]ResourceLevelConfig!$G193*H$4,0) -> 288 | E193: =ROUND([3]ResourceLevelConfig!$H193*H$4,0) -> 288 | F193: 689
A194: 190 | B194: =ROUND([3]ResourceLevelConfig!$E194*H$4,0) -> 620 | C194: =ROUND([3]ResourceLevelConfig!$C194*H$4,0) -> 6236 | D194: =ROUND([3]ResourceLevelConfig!$G194*H$4,0) -> 289 | E194: =ROUND([3]ResourceLevelConfig!$H194*H$4,0) -> 289 | F194: 690
A195: 191 | B195: =ROUND([3]ResourceLevelConfig!$E195*H$4,0) -> 620 | C195: =ROUND([3]ResourceLevelConfig!$C195*H$4,0) -> 6266 | D195: =ROUND([3]ResourceLevelConfig!$G195*H$4,0) -> 290 | E195: =ROUND([3]ResourceLevelConfig!$H195*H$4,0) -> 290 | F195: 691
A196: 192 | B196: =ROUND([3]ResourceLevelConfig!$E196*H$4,0) -> 620 | C196: =ROUND([3]ResourceLevelConfig!$C196*H$4,0) -> 6298 | D196: =ROUND([3]ResourceLevelConfig!$G196*H$4,0) -> 291 | E196: =ROUND([3]ResourceLevelConfig!$H196*H$4,0) -> 291 | F196: 692
A197: 193 | B197: =ROUND([3]ResourceLevelConfig!$E197*H$4,0) -> 640 | C197: =ROUND([3]ResourceLevelConfig!$C197*H$4,0) -> 6330 | D197: =ROUND([3]ResourceLevelConfig!$G197*H$4,0) -> 292 | E197: =ROUND([3]ResourceLevelConfig!$H197*H$4,0) -> 292 | F197: 693
A198: 194 | B198: =ROUND([3]ResourceLevelConfig!$E198*H$4,0) -> 640 | C198: =ROUND([3]ResourceLevelConfig!$C198*H$4,0) -> 6360 | D198: =ROUND([3]ResourceLevelConfig!$G198*H$4,0) -> 293 | E198: =ROUND([3]ResourceLevelConfig!$H198*H$4,0) -> 293 | F198: 694
A199: 195 | B199: =ROUND([3]ResourceLevelConfig!$E199*H$4,0) -> 640 | C199: =ROUND([3]ResourceLevelConfig!$C199*H$4,0) -> 6392 | D199: =ROUND([3]ResourceLevelConfig!$G199*H$4,0) -> 294 | E199: =ROUND([3]ResourceLevelConfig!$H199*H$4,0) -> 294 | F199: 695
A200: 196 | B200: =ROUND([3]ResourceLevelConfig!$E200*H$4,0) -> 640 | C200: =ROUND([3]ResourceLevelConfig!$C200*H$4,0) -> 6424 | D200: =ROUND([3]ResourceLevelConfig!$G200*H$4,0) -> 295 | E200: =ROUND([3]ResourceLevelConfig!$H200*H$4,0) -> 295 | F200: 696
A201: 197 | B201: =ROUND([3]ResourceLevelConfig!$E201*H$4,0) -> 640 | C201: =ROUND([3]ResourceLevelConfig!$C201*H$4,0) -> 6456 | D201: =ROUND([3]ResourceLevelConfig!$G201*H$4,0) -> 296 | E201: =ROUND([3]ResourceLevelConfig!$H201*H$4,0) -> 296 | F201: 697
... 103 more rows
